Cogmind - Beta 15 @@@ ROGUE MODE // 2025.09.12 @ 08:42:02 Player: Dosh Result: Destroyed by G-73 Enforcer with Phase Gun Performance ------------- Evolutions (8) 4000 Regions Visited (29) 5800 Robots Destroyed (512) 2560 Value Destroyed (28993) 28993 Prototype IDs (64) 1280 Alien Tech Used (8) 1600 Bonus (32926) 32926 TOTAL SCORE: 77159 Bonus ------- Triggered Max Security 2000 High Alert Combat Kills 6208 Follower Combat Kills 9440 Entered Garrisons 1200 Used RIF Installer 3000 Found Hidden Lab 3000 Used Core Reset Matrix 3000 Scanned by Researcher 500 Pursued by Intercept 1000 Met Sigix 2000 Activated Exoskeleton 3000 Friendly Fire -1422 Cogmind --------- Core Integrity 0/1450 Matter 300/300 Energy 100/100 System Corruption 4% Temperature Cool (4) Movement Core (50) Location -2/Research Parts ------- > --- POWER (3) -------- (None) > --- PROPULSION (7) --- (None) > --- UTILITY (12) ----- (None) > --- WEAPON (2) ------- (None) > --- INVENTORY (5) ---- Launcher Loader Heavy Armor Plating Peak State ------------ > --- POWER ------------ Quantum Reactor Quantum Reactor Light Quantum Reactor > --- PROPULSION ------- Centrium Leg Centrium Leg Centrium Leg Centrium Leg Centrium Leg Centrium Leg > --- UTILITY ---------- Advanced Cryofiber Web Experimental Heat Sink Huge Storage Unit Quantum Capacitor Experimental Transmission Jammer Deep Network Scanner Experimental System Shield LC Capacitor > --- WEAPON ----------- Enhanced Nova Cannon Guided Remote Datajack > --- INVENTORY -------- Light Particle Reactor Centrium Heavy Treads Biometal Heavy Treads Biometal Heavy Treads Experimental Power Amplifier Advanced Cooling System Experimental Sensor Array Experimental Core Analyzer Precision Energy Filter Launcher Loader Improved Medium Armor Plating Medium Regenerative Plating Improved Force Field Improved Remote Force Field Core Reset Matrix HERF Cannon Cooled Particle Cannon Enhanced Nova Cannon Neutron Missile Launcher Improved Remote Datajack [Rating: 217] Favorites ----------- Power Antimatter Reactor Engine Heavy Deuterium Engine Power Core Reinforced Fission Core Reactor Antimatter Reactor Propulsion Centrium Leg Treads Light Treads Leg Centrium Leg Wheel Wheel Utility Huge Storage Unit Device Quantum Capacitor Storage Huge Storage Unit Processor Advanced Targeting Computer Hackware Hacking Suite Protection Layered Heavy Armor Plating Artifact LC Capacitor Weapon Enhanced Autogun Energy Gun Hypervelocity EM Gauss Rifle Energy Cannon Enhanced Nova Cannon Ballistic Gun Enhanced Autogun Ballistic Cannon Advanced Assault Cannon Launcher Neutron Missile Launcher Special Weapon Improved Remote Datajack Impact Weapon Core Stripper Slashing Weapon Katana Special Melee Weapon Improved Datajack Build | -11 -10 -10 -10 -9 -8 -8 -8 -8 -7 -7 -7 -7 -6 -6 -5 -5 -5 -5 -5 -5 -4 -4 -4 -4 -4 -3 -3 -3 -2 ------- Run | Yrd Mat Min Exi Min Mat Gar Mat Gar Fac Was Fac Gar Fac Gar Fac Was Fac Gar Fac Gar Fac Was Fac Arm Lab Res Qua Sec Res Slots Evolved 16 | . . . . . 4 . . . 2 . . . 2 . 2 . . . . . 2 . . . . 2 . . 2 Power 1 | . . . . . . . . . 1 . . . . . . . . . . . . . . . . . . . . Propulsion 5 | . . . . . 1 . . . 1 . . . . . 1 . . . . . 1 . . . . . . . 1 Utility 10 | . . . . . 3 . . . . . . . 2 . 1 . . . . . 1 . . . . 2 . . 1 Weapon . | . . . . . . . . . . . . . . . . . . . . . . . . . . . . . . Parts Attached 277 | 6 7 . . 4 26 6 10 6 11 6 4 7 8 15 6 . 21 9 4 20 10 3 13 20 9 8 21 15 2 Power 41 | 1 2 . . 1 4 . 1 1 . 2 . . 2 2 . . 4 1 . 5 . . . 3 1 2 7 1 1 Engine 13 | 1 2 . . 1 4 . 1 1 . . . . . . . . 1 . . 2 . . . . . . . . . Core 5 | . . . . . . . . . . . . . . . . . 2 . . 1 . . . . . 1 1 . . Reactor 23 | . . . . . . . . . . 2 . . 2 2 . . 1 1 . 2 . . . 3 1 1 6 1 1 Propulsion 52 | 2 . . . 2 5 3 3 2 5 2 . . 1 2 1 . 3 . . 2 2 1 . 8 . . 1 6 1 Treads 34 | 2 . . . 2 5 3 3 2 2 2 . . 1 2 1 . 3 . . 1 2 1 . 2 . . . . . Leg 15 | . . . . . . . . . . . . . . . . . . . . 1 . . . 6 . . 1 6 1 Wheel 3 | . . . . . . . . . 3 . . . . . . . . . . . . . . . . . . . . Hover . | . . . . . . . . . . . . . . . . . . . . . . . . . . . . . . Flight . | . . . . . . . . . . . . . . . . . . . . . . . . . . . . . . Utility 142 | 1 3 . . . 8 3 5 2 4 1 3 4 5 9 4 . 12 7 3 11 7 2 11 8 5 6 10 8 . Device 51 | . 1 . . . 2 1 . . 1 1 1 1 2 1 1 . 7 5 1 2 3 2 3 3 1 4 5 3 . Storage 7 | 1 2 . . . . . . . . . . . 1 . . . . . . . . . . . . 1 . 2 . Processor 4 | . . . . . 1 . . . . . . . . . . . . . . . . . . . . 1 . 2 . Hackware 61 | . . . . . 1 . 3 1 2 . 2 3 2 6 3 . 5 1 2 7 3 . 8 5 2 . 4 1 . Protection 17 | . . . . . 4 2 2 1 1 . . . . 2 . . . 1 . 2 1 . . . 1 . . . . Artifact 2 | . . . . . . . . . . . . . . . . . . . . . . . . . 1 . 1 . . Weapon 42 | 2 2 . . 1 9 . 1 1 2 1 1 3 . 2 1 . 2 1 1 2 1 . 2 1 3 . 3 . . Energy Gun 2 | . . . . . . . . . . . . . . . . . . . . . . . . . 2 . . . . Energy Cannon 13 | . . . . . . . . . 1 . . . . 2 . . 2 1 1 2 1 . 1 . . . 2 . . Ballistic Gun 7 | 2 . . . . 5 . . . . . . . . . . . . . . . . . . . . . . . . Ballistic Cannon 8 | . 2 . . 1 2 . . . 1 . . 2 . . . . . . . . . . . . . . . . . Launcher 3 | . . . . . 1 . . . . 1 . . . . . . . . . . . . 1 . . . . . . Special Weapon 6 | . . . . . . . . 1 . . 1 1 . . 1 . . . . . . . . 1 1 . . . . Impact Weapon 1 | . . . . . . . . . . . . . . . . . . . . . . . . . . . 1 . . Slashing Weapon 1 | . . . . . 1 . . . . . . . . . . . . . . . . . . . . . . . . Piercing Weapon . | . . . . . . . . . . . . . . . . . . . . . . . . . . . . . . Special Melee Weapon 1 | . . . . . . . 1 . . . . . . . . . . . . . . . . . . . . . . Unidentified Prototypes 29 | . . . . . 3 . . . 1 1 . . 1 . . . 5 . . . . 1 1 . 8 . 5 3 . Corrupted Parts 6 | . . . . . . . . . . . . . . . . . . . . 1 . . . . . . . 5 . System Corruption 37 | . . . . . . . . . . . . . . . . . . . . 5 . . . . . . . 32 . Parts Lost 60 | . 1 . . 5 2 1 2 3 7 . . . . 1 . . 6 2 . 3 1 . . 3 . 5 4 8 6 Power 11 | . 1 . . 1 . . . 1 . . . . . 1 . . 3 . . . . . . 1 . 2 . 1 . Propulsion 12 | . . . . 2 . . . 2 3 . . . . . . . 1 . . 2 . . . . . . 1 1 . Utility 24 | . . . . 1 2 1 2 . 1 . . . . . . . 1 2 . . . . . 2 . 2 2 3 5 Weapon 13 | . . . . 1 . . . . 3 . . . . . . . 1 . . 1 1 . . . . 1 1 3 1 Highest Loss Streak 6 | . 1 . . 4 1 1 1 2 5 . . . . 1 . . 4 1 . 1 1 . . 1 . 4 2 2 6 To Critical Strikes 4 | . . . . . . . . . 1 . . . . . . . 1 . . 1 . . . . . . 1 . . Average Backups 20 | . 8 15 15 14 19 23 23 23 21 24 24 23 23 21 21 21 18 20 22 22 23 23 22 19 19 20 20 19 13 Power 1 | . . 1 1 1 2 3 2 1 . 1 1 1 1 . 1 1 . 1 1 1 1 1 1 1 . . 1 3 3 Propulsion 2 | . 1 3 3 2 3 3 5 3 1 2 1 1 1 1 1 1 1 4 3 2 2 2 1 2 3 3 2 3 2 Utility 11 | . 2 4 4 4 7 11 11 14 14 16 15 17 16 16 12 12 9 9 13 15 16 17 16 10 10 11 11 8 4 Weapon 3 | . 3 6 6 6 5 4 4 4 3 3 5 3 4 4 5 6 5 3 4 2 2 2 3 3 4 2 2 2 . Tool/Special . | . . . . . . . . . . . . . . . . . . . . . . . . . . . . . . Unused Backups 59 | . . . . 1 10 3 1 4 . 5 3 3 . 7 . . . 3 . 5 1 1 . . . 1 3 3 5 Power 7 | . . . . 1 2 . . . . . 1 . . . . . . . . 1 . . . . . . . . 2 Propulsion 15 | . . . . . . . 1 1 . 4 . . . 1 . . . 3 . . . . . . . . 2 3 . Utility 25 | . . . . . 2 2 . 3 . 1 2 3 . 6 . . . . . 3 . 1 . . . . 1 . 1 Weapon 7 | . . . . . 5 1 . . . . . . . . . . . . . 1 . . . . . . . . . Tool/Special 5 | . . . . . 1 . . . . . . . . . . . . . . . 1 . . . . 1 . . 2 Average Slot Usage (%) 86 | . 90 100 100 92 96 90 97 99 98 87 83 84 85 82 75 76 77 75 76 76 77 77 78 79 90 86 93 89 76 Engine 4 | . 13 14 14 10 9 9 9 8 15 6 . . . . . . . . . 2 . . . . . . . . . Reactor 6 | . . . . . . . . . . 8 15 15 13 12 11 11 9 2 5 5 10 10 10 10 12 12 8 9 7 Treads 17 | . 28 28 28 27 27 27 27 26 18 13 14 15 13 14 16 17 18 17 17 16 14 14 15 13 . . . . . Leg 3 | . . . . . . . . . . . . . . . . . . . . . . . . 3 30 27 26 27 26 Device 13 | . 5 14 14 11 7 9 5 1 5 12 6 8 19 15 15 11 15 20 13 15 19 24 15 18 23 18 20 22 24 Storage 7 | . 14 14 14 14 9 9 9 9 7 7 7 7 6 6 5 5 5 5 5 5 5 5 5 5 5 4 4 4 3 Processor 3 | . . . . . 8 9 9 9 7 7 7 7 6 1 . . . . . . . . . . . . 4 7 7 Hackware 9 | . . . . . 6 . 6 14 14 9 15 13 13 11 5 11 8 1 8 7 13 10 20 14 6 9 14 4 . Protection 4 | . . . . . 9 9 12 11 2 . . . . 4 5 5 4 5 5 5 2 1 . 2 1 . . 3 . Energy Cannon 2 | . . . . . . . . . . . . . . 7 5 5 5 8 5 6 5 5 4 6 4 6 6 4 3 Ballistic Gun 3 | . 19 . . . 7 14 7 5 8 11 10 . . . . . . . . . . . . . . . . . . Ballistic Cannon 4 | . 7 28 28 28 9 . 7 8 3 . . 13 8 2 . . . . . . . . . . . . . . . Special Weapon 2 | . . . . . . . . . 2 . 4 . 3 3 5 5 4 2 4 3 4 5 4 3 4 1 1 2 . Peak Build Rating 217 | 6 10 10 10 12 36 36 47 47 55 75 73 75 89 105 121 115 136 134 130 136 150 152 149 157 204 217 200 198 200 Average Rating 92 | 4 7 10 10 10 30 33 45 45 49 65 70 74 85 94 119 115 116 130 125 124 142 147 143 150 167 210 183 188 178 On Entrance 90 | . 6 10 10 10 11 34 33 45 46 45 73 72 74 85 98 115 115 132 130 125 136 146 146 145 157 204 189 190 133 Naked Turns 31 | . . . . . . . . . . . . . . . . . . . . . . . . . . . . . 31 Heaviest Build 194 | 12 94 34 34 94 123 120 151 131 134 132 127 147 129 157 151 150 163 185 185 184 163 157 160 160 174 192 194 183 178 Greatest Support 230 | 40 40 40 40 40 60 60 84 84 100 140 140 140 145 145 185 185 195 195 195 195 230 225 225 230 180 180 180 178 208 Greatest Overweight (x) 11 | . 2 . . 2 2 1 1 1 11 3 . 1 . 1 . . 1 . . . . . . 2 . 1 1 1 . Average Overweight (x) . | . . . . . 1 1 1 1 2 . . . . . . . . . . . . . . . . . . . . Largest Inventory Capacity 25 | 8 25 15 15 25 25 25 25 25 25 25 25 25 25 25 25 25 25 25 25 25 25 25 25 25 25 25 25 25 25 Average Capacity 24 | 6 12 15 15 20 25 25 25 25 25 25 25 25 25 25 25 25 25 25 25 25 25 25 25 25 25 25 25 25 23 Most Carried 25 | 1 15 15 15 16 25 25 25 25 25 25 25 25 25 25 25 22 25 25 25 25 25 25 25 25 25 25 25 25 21 Average Carried 22 | . 8 15 15 14 20 24 23 23 21 24 24 24 24 24 22 22 20 23 24 24 24 24 23 21 24 24 24 23 15 Final Capacity 25 | 8 15 15 15 25 25 25 25 25 25 25 25 25 25 25 25 25 25 25 25 25 25 25 25 25 25 25 25 25 5 Final Carried 25 | 1 15 15 15 14 25 25 23 25 24 25 25 25 23 24 22 22 23 25 25 25 25 24 23 25 25 23 22 22 4 Class Distribution -------------------- 39% | Bothacker-Mutant 19% | Mutant 16% | Botlord-Mutant 9% | Scavenger-Mutant 8% | Commander-Mutant 4% | Hacker-Mutant Dominant Class ---------------- Mutant | -10/Materials Mutant | -10/Mines Mutant | -10/Exiles Mutant | -9/Mines Scavenger-Mutant | -8/Materials Mutant | -8/Garrison Bothacker-Mutant | -8/Materials Bothacker-Mutant | -8/Garrison Bothacker-Mutant | -7/Factory Bothacker-Mutant | -7/Waste Bothacker-Mutant | -7/Factory Bothacker-Mutant | -7/Garrison Bothacker-Mutant | -6/Factory Bothacker-Mutant | -6/Garrison Botlord-Mutant | -5/Factory Bothacker-Mutant | -5/Waste Bothacker-Mutant | -5/Factory Scavenger-Mutant | -5/Garrison Botlord-Mutant | -5/Factory Botlord-Mutant | -5/Garrison Botlord-Mutant | -4/Factory Botlord-Mutant | -4/Waste Botlord-Mutant | -4/Factory Commander-Mutant | -4/Armory Commander-Mutant | -4/Lab Hacker-Mutant | -3/Research Bothacker-Mutant | -3/Quarantine Hacker-Mutant | -3/Section 7 Alien-Mutant | -2/Research Resources | -11 -10 -10 -10 -9 -8 -8 -8 -8 -7 -7 -7 -7 -6 -6 -5 -5 -5 -5 -5 -5 -4 -4 -4 -4 -4 -3 -3 -3 -2 ----------- Run | Yrd Mat Min Exi Min Mat Gar Mat Gar Fac Was Fac Gar Fac Gar Fac Was Fac Gar Fac Gar Fac Was Fac Arm Lab Res Qua Sec Res Matter Collected 15601 | 229 480 163 . 119 1190 950 959 487 794 1668 194 781 352 695 115 . 771 324 183 934 411 99 636 1127 159 80 324 1327 50 Remotely 1090 | . . . . . . . . . . . . . . . . . . . . . . . . . . . . 1090 . Salvage Created 25498 | . 429 87 . 102 1274 1004 944 404 519 1908 . 514 395 571 233 . 1691 995 53 833 468 1810 2064 1960 80 1193 1895 3442 630 Parts 1101 | . 37 9 . 11 89 60 52 26 38 27 . 37 8 21 4 . 79 37 2 32 16 17 96 76 3 75 62 159 28 Haulers Intercepted 10 | . 2 . . . 4 . 3 . . . . . . . . . 1 . . . . . . . . . . . . Recyclers Shooed 10 | . 1 . . 1 2 . . . . . . . . . . . 4 . . . 1 . 1 . . . . . . Parts Field Recycled . | . . . . . . . . . . . . . . . . . . . . . . . . . . . . . . Retrieved Matter . | . . . . . . . . . . . . . . . . . . . . . . . . . . . . . . Parts Self-Destructed . | . . . . . . . . . . . . . . . . . . . . . . . . . . . . . . Prevented . | . . . . . . . . . . . . . . . . . . . . . . . . . . . . . . Kills | -11 -10 -10 -10 -9 -8 -8 -8 -8 -7 -7 -7 -7 -6 -6 -5 -5 -5 -5 -5 -5 -4 -4 -4 -4 -4 -3 -3 -3 -2 ------- Run | Yrd Mat Min Exi Min Mat Gar Mat Gar Fac Was Fac Gar Fac Gar Fac Was Fac Gar Fac Gar Fac Was Fac Arm Lab Res Qua Sec Res Combat Hostiles Destroyed 436 | . 14 5 . 5 33 23 22 19 13 6 . 14 9 11 2 . 27 15 . 12 9 6 34 41 1 14 18 76 7 Melee 1 | . . . . . . . . . . . . . . . . . . . . . . . . 1 . . . . . Guns 62 | . 13 . . . 9 23 4 2 5 6 . . . . . . . . . . . . . . . . . . . Cannons 221 | . 1 5 . 5 16 . 14 9 4 . . 14 9 11 2 . 17 8 . 9 7 3 20 21 1 13 14 11 7 AOE 117 | . . . . . 8 . 4 8 4 . . . . . . . 7 1 . . . . 9 15 . . . 61 . Classes Destroyed 26 | . 5 . . 1 6 1 . 3 . 1 . . . 1 . . 3 . . . . . . 1 . . 2 1 1 Worker 20 | . 1 . . 1 3 . 2 . 2 . . . . . 1 . 3 . . . . . 4 . . . 3 . . Builder 8 | . . . . . 1 . . . 1 . . . . . . . 5 . . . . . 1 . . . . . . Hauler 10 | . 2 . . . 4 . 3 . . . . . . . . . 1 . . . . . . . . . . . . Recycler 8 | . . . . . 1 . 2 . 2 . . . . . 1 . . . . . . . 1 . . . . 1 . Mechanic 3 | . . . . . . . . . . . . . . . . . 1 . . . . . . . . . . 2 . Operator 6 | . 2 . . . 2 . . . . . . . . . . . 1 . . . . . 1 . . . . . . Watcher 9 | . . . . . 3 . 1 . . . . . . . . . 1 . 1 . . . 1 1 . . 1 . . Swarmer 88 | . 9 3 . 2 13 4 2 4 9 . . . . 3 1 . 2 4 . . 3 . 10 11 . . 4 4 . Cutter 1 | . . . . . . 1 . . . . . . . . . . . . . . . . . . . . . . . Saboteur 11 | . . . . . . . . . . . . . . . . . . . . . . . . 1 . . . 10 . Grunt 130 | . 5 2 . 1 11 7 13 9 . . . 5 4 4 1 . 3 8 . 1 1 . 8 16 . . 7 24 . Brawler 15 | . . . . . 1 . 1 1 . . . . 2 1 . . . . . 1 . . . . . . . 6 2 Duelist 7 | . . . . . . . . 1 . . . . . . . . 1 . . . . . . 1 . . . 4 . Protector 3 | . . . . . . . . . . . . . . . . . 1 . . . . . . . . . . 2 . Researcher 3 | . . . . . . . . . . . . . . . . . . . . . . . . . . . 3 . . Sentry 44 | . . . . . 7 5 6 . 3 . . 3 . . . . . . . 2 1 . 3 1 . 6 . 3 4 Demolisher 6 | . . . . 2 . . . . . . . . . . . . . 1 . . . . . 3 . . . . . Specialist 19 | . . . . . . . . 2 . . . . 2 . . . 4 . . . 1 1 1 1 . 2 3 2 . Hunter 45 | . . . . . 1 6 . . . . . 5 . . . . 11 3 . 5 . . 6 3 . . . 5 . Programmer 40 | . . . . . . . . 2 1 . . 1 1 2 . . 2 . . 2 3 . 5 5 . 4 3 9 . Heavy 6 | . . . . . . . . . . . . . . . . . 3 . . . . . . . . 2 . 1 . Behemoth 2 | . . . . . . . . . . . . . . 1 . . . . . . . . 1 . . . . . . Compactor 12 | . . . . . . . . . . 6 . . . . . . . . . . . 6 . . . . . . . Investigator 1 | . . . . . . . . . . . . . . . . . . . . . . . . . . . . 1 . Striker 1 | . . . . . . . . . . . . . . . . . . . . . . . . . . . . . 1 Executioner 7 | . . . . . . . . . . . . . . . . . . . . . . . . . . . . 7 . Fortress 1 | . . . . . . . . . . . . . . . . . . . . . . . . . . . 1 . . Martyr 4 | . . . . . . . . . . 2 . . . . . . . . . . . . 2 . . . . . . Guerrilla 1 | . . . . . . . . . . . . . . . . . . . . 1 . . . . . . . . . Best Kill Streak 35 | . 5 3 . 2 6 4 6 7 7 1 . 3 4 3 3 . 14 10 1 5 7 1 7 5 1 4 3 35 4 Combat Bots Only 33 | . 5 3 . 2 6 4 4 7 7 1 . 3 4 3 1 . 10 10 . 5 7 1 7 5 1 4 3 33 4 Max Kills in Single Turn 11 | . 1 1 . 1 3 1 2 3 4 1 . 1 1 1 1 . 5 2 1 1 1 1 4 5 1 1 1 11 1 Gunslinging 1 | . . . . . . . . . 1 . . . . . . . . . . . . . . . . . . . . Exploded 10 | . . . . . 2 . 2 3 4 . . . . . . . 4 1 . . . . 4 4 . . . 10 . Melee 1 | . . . . . . . . . . . . . . . . . . . . . . . . 1 . . . . . Uniques/NPCs Destroyed 1 | . . . . . . . . . . . . . . . . . . . . . . . . . 1 . . . . A5 (-4/Lab) Combat | -11 -10 -10 -10 -9 -8 -8 -8 -8 -7 -7 -7 -7 -6 -6 -5 -5 -5 -5 -5 -5 -4 -4 -4 -4 -4 -3 -3 -3 -2 -------- Run | Yrd Mat Min Exi Min Mat Gar Mat Gar Fac Was Fac Gar Fac Gar Fac Was Fac Gar Fac Gar Fac Was Fac Arm Lab Res Qua Sec Res Hostile Shots Fired 2715 | . 61 16 . 15 150 105 101 127 247 . 6 141 79 87 11 . 214 87 10 128 47 . 162 144 8 205 193 146 225 Missed 849 | . 14 6 . 4 47 34 27 28 73 . 2 45 23 16 2 . 59 23 5 35 11 . 54 49 1 106 63 50 72 Hits 1866 | . 47 10 . 11 103 71 74 99 174 . 4 96 56 71 9 . 155 64 5 93 36 . 108 95 7 99 130 96 153 Melee 13 | . . . . . . 2 . 1 . . . 1 . . . . . 3 . . . . . 1 . . . 1 4 Projectile 1853 | . 47 10 . 11 103 69 74 98 174 . 4 95 56 71 9 . 155 61 5 93 36 . 108 94 7 99 130 95 149 AOE 23 | . . . . 9 . 1 . . . . . . . . . . . 5 . . . . 1 6 . . . . 1 Critical Strikes 80 | . 2 . . . 4 3 3 4 1 . 2 2 2 3 . . 8 3 . 6 . . 5 6 . 1 7 5 13 Part Disruptions 2 | . . . . . . . . . . . . . . . . . . . . . . . . 1 . . 1 . . Damage Taken 26318 | . 443 166 . 385 1069 822 924 1296 1259 . 214 563 351 733 117 . 2587 1294 96 1987 658 . 1570 1627 98 1634 1653 1890 2882 Core 3356 | . 52 8 . 55 104 75 66 224 82 . . 56 43 40 . . 137 113 . 211 24 . 127 63 14 125 74 212 1451 Absorbed by Shields 8510 | . . . . . 368 272 248 77 124 . . 365 377 629 49 . 828 132 . 69 123 . 528 626 97 389 1291 849 1069 Reduced by Siege Mode 243 | . . . . . . . . . . . . . 41 68 . . 53 25 . 5 51 . . . . . . . . Redirected to Core 239 | . . . . . . . . . . . . . . . . . . . . . . . . . . . 17 . 222 Ignored by Resistances 717 | . . . . . . 6 20 110 289 . . . . . . . . . . . . . . . . . . 162 130 Regen/Repaired (Parts) 5807 | . . . . . . . 142 . 96 78 164 68 40 342 . . 671 . . . 305 . 404 843 . 191 375 2088 . Core Remaining (%) 63 | 100 . . . 54 . . . 14 . . . 80 . 90 . . . . . 53 . . . . 76 . . 43 . Volleys Fired 2111 | . 48 8 . 10 107 74 58 45 48 136 18 58 30 78 13 5 157 121 22 193 50 40 174 225 44 79 94 131 45 Largest 2 | . 2 2 . 2 2 2 2 2 2 2 2 2 2 2 1 1 2 1 1 1 2 1 1 2 1 1 1 2 1 Hottest 214 | . 66 66 . 66 80 50 80 80 84 50 50 80 80 170 85 7 192 113 113 113 214 120 120 208 120 120 120 143 120 Shots Fired 2699 | . 97 17 1 20 201 148 111 77 76 260 21 110 49 121 14 6 152 113 22 188 51 40 175 229 44 79 97 135 45 Gun 682 | . 84 . . . 102 148 30 11 42 254 11 . . . . . . . . . . . . . . . . . . Cannon 1657 | . 13 17 1 20 92 . 76 52 28 . . 108 40 108 9 1 128 101 7 119 34 40 158 157 42 79 87 95 45 Launcher 76 | . . . . . 7 . 5 11 1 . . . . . . . 4 . . . . . 5 6 . . . 37 . Special 284 | . . . . . . . . 3 5 6 10 2 9 13 5 5 20 12 15 69 17 . 12 66 2 . 10 3 . Kinetic 1169 | . 97 17 1 20 194 148 106 63 70 254 11 108 40 40 . . . . . . . . . . . . . . . Thermal 741 | . . . . . . . . . . . . . . 68 9 1 89 33 1 30 28 40 123 107 42 64 28 33 45 Explosive 76 | . . . . . 7 . 5 11 1 . . . . . . . 4 . . . . . 5 6 . . . 37 . Electromagnetic 429 | . . . . . . . . . . . . . . . . . 39 68 6 89 6 . 35 50 . 15 59 62 . Robot Hit Streak 29 | . 8 4 . 7 18 18 21 19 9 27 15 9 13 18 5 10 16 22 5 16 29 21 10 20 6 16 25 11 15 Robot Miss Streak 6 | . 3 2 . 3 6 3 3 4 3 2 2 2 1 2 1 . 5 4 3 5 1 2 5 3 3 4 5 4 2 Penetration Max . | . . . . . . . . . . . . . . . . . . . . . . . . . . . . . . Secondary Targets 8 | . 1 . . . 2 2 . . 1 2 . . . . . . . . . . . . . . . . . . . Max Gunslinging Chain 1 | . 1 . . . 1 1 . . 1 1 . . . . . . . . . . . . . . . . . . . Capacitor 1079 | . . . . . . . . . . . . . . . 9 1 121 101 7 119 32 40 158 154 42 79 86 85 45 Shots Hit Robots 1817 | . 61 9 . 12 139 102 89 51 54 229 15 57 34 78 9 6 98 75 12 104 43 34 108 150 22 64 56 70 36 Core Hits 882 | . 25 6 . 7 73 46 45 38 28 32 1 22 18 25 3 . 69 24 1 14 10 7 67 63 4 29 25 187 13 Critical Kills 12 | . . . . . 1 1 . . . . . . . . 1 . 3 . . . 1 2 2 1 . . . . . Critical Parts Destroyed 1 | . . . . . 1 . . . . . . . . . . . . . . . . . . . . . . . . Critical Strikes 38 | . . . . . 5 1 3 2 1 2 . 4 2 3 1 . 3 . . 1 1 2 3 2 . . . 2 . Meltdown 10 | . . . . . . . . . . . . . . . 1 . 3 . . . 1 2 2 1 . . . . . Destroy 5 | . . . . . 2 1 . . . 2 . . . . . . . . . . . . . . . . . . . Blast 18 | . . . . . 3 . 3 2 1 . . 4 2 3 . . . . . . . . . . . . . . . Corrupt 5 | . . . . . . . . . . . . . . . . . . . . 1 . . 1 1 . . . 2 . Melee Attacks 51 | . . . . . 4 12 14 14 3 3 . . . . . . . . . . . . . . . . 1 . . Kinetic 1 | . . . . . . . . . . . . . . . . . . . . . . . . . . . 1 . . Impact . | . . . . . . . . . . . . . . . . . . . . . . . . . . . . . . Slashing 45 | . . . . . 4 12 9 14 3 3 . . . . . . . . . . . . . . . . . . . Piercing . | . . . . . . . . . . . . . . . . . . . . . . . . . . . . . . Sneak Attacks 8 | . . . . . . . 5 . . 3 . . . . . . . . . . . . . . . . . . . Combat Hostiles . | . . . . . . . . . . . . . . . . . . . . . . . . . . . . . . Follow-up Attacks . | . . . . . . . . . . . . . . . . . . . . . . . . . . . . . . Damage Inflicted 70614 | . 874 197 . 267 3109 1519 2764 1956 1379 4199 122 1507 840 2249 178 . 5355 2516 128 1901 1346 1437 6546 6009 804 2743 2532 16604 1533 Guns 8509 | . 681 . . . 1097 1519 415 163 505 4007 122 . . . . . . . . . . . . . . . . . . Cannons 37782 | . 167 182 . 257 1495 . 1575 976 643 . . 1499 840 2249 178 . 3132 2419 84 1882 1208 1437 4602 3821 804 2743 2326 1785 1478 Explosions 22963 | . . 15 . . 420 . 542 804 231 . . . . . . . 2116 64 . . . . 1809 2176 . . . 14786 . Melee 413 | . . . . . . . 221 . . 192 . . . . . . . . . . . . . . . . . . . Ramming 947 | . 26 . . 10 97 . 11 13 . . . 8 . . . . 107 33 44 19 138 . 135 12 . . 206 33 55 Kinetic 16900 | . 848 182 . 257 2592 1519 1990 1139 1148 4007 122 1499 840 757 . . . . . . . . . . . . . . . Thermal 22216 | . . 15 . . . . . . . . . . . 1492 178 . 2243 857 . 687 1096 1437 4114 2716 804 2386 961 1752 1478 Explosive 21180 | . . . . . 420 . 542 804 231 . . . . . . . 2116 . . . . . 1477 2176 . . . 13414 . Electromagnetic 8958 | . . . . . . . . . . . . . . . . . 889 1626 84 1195 112 . 820 1105 . 357 1365 1405 . Impact . | . . . . . . . . . . . . . . . . . . . . . . . . . . . . . . Slashing 413 | . . . . . . . 221 . . 192 . . . . . . . . . . . . . . . . . . . Piercing . | . . . . . . . . . . . . . . . . . . . . . . . . . . . . . . Highest Corruption 44 | . 1 1 1 1 . . . 1 . . 3 2 . . 3 20 35 35 35 44 3 3 6 1 2 2 14 34 4 Average Corruption 12 | . 1 1 1 1 . . . 1 . . 1 1 . . 3 11 25 35 35 40 2 3 3 1 1 1 6 6 3 Corruption Purged 12 | . . . . . . . . . . . 3 . . . . . . . . . . . 9 . . . . . . Corruption Blocked . | . . . . . . . . . . . . . . . . . . . . . . . . . . . . . . Effects 415 | . 2 6 2 5 . . . 4 . . 5 3 . . 3 4 64 65 27 106 1 20 11 11 4 6 39 26 1 Message Errors 92 | . . . . 1 . . . 1 . . . . . . 1 . 11 19 4 18 . 6 2 4 1 2 13 8 1 Matter Fused 70 | . . 3 . 1 . . . 1 . . . 1 . . 1 1 9 9 4 19 1 4 4 1 1 1 6 3 . Heat Flow Errors 40 | . . . . . . . . 2 . . . . . . . . 8 5 6 12 . 2 2 . . . 2 1 . Energy Discharges 47 | . 1 . 1 . . . . . . . . 1 . . . . 11 5 2 10 . 2 . . 1 1 6 6 . Parts Rejected 8 | . . . . . . . . . . . . . . . . . 1 1 2 1 . 1 . . . . 1 1 . Parts Fused 5 | . . . . . . . . . . . . . . . . . 2 1 . 1 . . . 1 . . . . . Data Loss (minor) 47 | . . 2 . . . . . . . . 3 . . . . 1 3 11 3 12 . 1 1 1 1 2 3 3 . Data Loss (major) 28 | . . . . 2 . . . . . . 1 . . . . 1 4 2 2 8 . 2 1 2 . . 2 1 . Misfires 24 | . 1 1 1 . . . . . . . 1 1 . . 1 1 1 1 . 7 . . 1 2 . . 3 2 . Alerts 12 | . . . . 1 . . . . . . . . . . . . 3 1 1 3 . 2 . . . . 1 . . Misdirections 11 | . . . . . . . . . . . . . . . . . 2 1 3 3 . . . . . . 2 . . Weapon Failures 31 | . . . . . . . . . . . . . . . . . 9 9 . 12 . . . . . . . 1 . Overload Shots 8 | . . . . . . . . . . . . . . . . . . . . 1 . . . 1 6 . . . . Effects 2 | . . . . . . . . . . . . . . . . . . . . . . . . . 2 . . . . Energy Bleed 1 | . . . . . . . . . . . . . . . . . . . . . . . . . 1 . . . . Heat Surge 1 | . . . . . . . . . . . . . . . . . . . . . . . . . 1 . . . . Overflow Damage 1743 | . 1 . . . 54 . 33 16 . . . 17 34 4 . . 117 43 . 11 76 13 372 260 42 . 194 396 60 Projectiles 989 | . 1 . . . 54 . 30 6 . . . 17 34 4 . . 26 43 . 11 76 13 313 125 42 . 111 23 60 Explosions 657 | . . . . . . . 3 10 . . . . . . . . 83 . . . . . 53 135 . . . 373 . Melee 97 | . . . . . . . . . . . . . . . . . 8 . . . . . 6 . . . 83 . . Knockbacks 55 | . 2 . . 4 7 . 15 8 . . . 10 3 4 . . . . . . . . 1 . . . . 1 . Impact 2 | . . . . . . . . . . . . . . . . . . . . . . . 1 . . . . 1 . Kinetic 49 | . 2 . . 4 7 . 12 8 . . . 9 3 4 . . . . . . . . . . . . . . . Secondary 4 | . . . . . . . 3 . . . . 1 . . . . . . . . . . . . . . . . . Self-Inflicted Damage 393 | . . 54 . . 64 . . 93 . . . . . . . . . 59 . . . . . . . . . 123 . Shots 13 | . . 2 . . 2 . . 6 . . . . . . . . . 1 . . . . . . . . . 2 . Rammed 58 | . 7 . . 2 13 . 1 3 . . . 1 . . . . 6 2 1 2 10 . 8 2 . . . . . Targets Rammed 77 | . 7 . . 3 14 . 2 3 . . . 1 . . . . 6 2 1 2 10 . 10 2 . . 7 5 2 Kicked 14 | . . . . . . . . . . . . . . . . . . . . . . . . . . . 7 5 2 Crushed 5 | . . . . 1 1 . 1 . . . . . . . . . . . . . . . 2 . . . . . . Highest Temperature 494 | . . 17 . . 168 130 317 261 352 140 9 144 175 336 376 63 494 198 480 403 304 . 373 381 407 341 128 121 388 Average Temperature 105 | . . 10 . . 47 39 91 88 143 45 9 38 86 91 186 41 148 86 149 117 116 . 141 148 209 152 28 46 175 Received Heat Transfer 4164 | . 114 27 . . 316 126 444 555 290 . 54 98 91 184 12 . 126 250 45 332 71 . 111 210 . 114 74 173 347 Effects 33 | . . . . . . . 1 . 4 . . . . 1 . . 14 . 6 1 . . 3 . . 3 . . . Shutdowns 3 | . . . . . . . 1 . . . . . . . . . . . 1 1 . . . . . . . . . Energy Bleed 4 | . . . . . . . . . . . . . . 1 . . 1 . 1 . . . 1 . . . . . . Interference 18 | . . . . . . . . . 2 . . . . . . . 10 . 3 . . . . . . 3 . . . Matter Decay 1 | . . . . . . . . . . . . . . . . . 1 . . . . . . . . . . . . Short Circuit 5 | . . . . . . . . . 2 . . . . . . . 1 . . . . . 2 . . . . . . Damage (minor) 2 | . . . . . . . . . . . . . . . . . 1 . 1 . . . . . . . . . . Siege Activations 15 | . . . . . . . . . . . . . 2 1 . . 4 2 . 1 1 2 2 . . . . . . Total Turns 906 | . . . . . . . . . . . . . 56 23 . . 69 32 . 21 28 652 25 . . . . . . Longest Duration 600 | . . . . . . . . . . . . . 32 23 . . 21 17 . 21 28 600 23 . . . . . . Martial Activations . | . . . . . . . . . . . . . . . . . . . . . . . . . . . . . . Shielding Activations . | . . . . . . . . . . . . . . . . . . . . . . . . . . . . . . Robots Disrupted 2 | . . . . . . . . . . . . . . . . . . 1 . . . . . 1 . . . . . Combat Hostiles 2 | . . . . . . . . . . . . . . . . . . 1 . . . . . 1 . . . . . Robots Corrupted 27 | . . . . . . . . . . . . . . . . . 1 7 . 3 1 . 3 3 . . 5 4 . Combat Hostiles 23 | . . . . . . . . . . . . . . . . . . 6 . 3 1 . 3 3 . . 3 4 . Parts Fried 93 | . . . . . . . . . . . . . . . . . 16 13 . 12 2 . 10 9 . 1 14 16 . Impact Corruptions 5 | . . . . . . . . . . . . . . . . . 1 . . . . . 1 . . . 3 . . Robots Melted 12 | . . . . . . . . . . . . . . . 1 . 3 . . . 1 3 2 1 . 1 . . . Combat Hostiles 11 | . . . . . . . . . . . . . . . . . 3 . . . 1 3 2 1 . 1 . . . Parts Melted 40 | . . . . . . . 5 . . . . . . 1 2 . 8 . . . 9 6 4 4 . 1 . . . Heat Transferred 20375 | . . 50 . . . . . . . . . . . 1535 222 . 3350 938 . 554 851 1258 3371 2238 758 2017 740 1293 1200 Parts Sabotaged 6 | . . . . . . . . . . . . . . . . . . . . . . . . . . . . 3 3 Parts Stolen . | . . . . . . . . . . . . . . . . . . . . . . . . . . . . . . Parts Stripped 18 | . . . . . . . . . . . . . . . . . . . . . . . . . . . 18 . . Power Chain Reactions 7 | . . . . . . . . . . . . . . . . . . 1 . . . . . 2 . . . 4 . Alert | -11 -10 -10 -10 -9 -8 -8 -8 -8 -7 -7 -7 -7 -6 -6 -5 -5 -5 -5 -5 -5 -4 -4 -4 -4 -4 -3 -3 -3 -2 ------- Run | Yrd Mat Min Exi Min Mat Gar Mat Gar Fac Was Fac Gar Fac Gar Fac Was Fac Gar Fac Gar Fac Was Fac Arm Lab Res Qua Sec Res Maximum Alert Level 5 | . 1 . . . 1 3 2 2 2 . 2 4 2 3 2 . 1 4 4 3 2 . 2 2 . . . 5 5 Low Security (%) 49 | 100 70 100 . 100 95 36 20 25 . 100 30 . . . . 100 82 8 . . 26 100 80 32 . 100 100 59 . Level 1 20 | . 29 . . . 4 26 56 29 86 . 40 . 7 29 78 . 17 21 . 6 42 . 14 46 . . . . . Level 2 16 | . . . . . . 28 23 45 13 . 28 16 92 39 21 . . 12 36 16 31 . 4 21 . . . . . Level 3 9 | . . . . . . 9 . . . . . 52 . 30 . . . 27 57 77 . . . . . . . . . Level 4 2 | . . . . . . . . . . . . 30 . . . . . 30 6 . . . . . . . . . . Level 5 . | . . . . . . . . . . . . . . . . . . . . . . . . . . . . . 3 High Security . | . . . . . . . . . . . . . . . . . . . . . . . . . . . . . . Max Security 2 | . . . . . . . . . . . . . . . . . . . . . . . . . . . . 40 96 Peak Influence 4194 | . 268 164 . 153 270 832 544 615 422 97 632 1280 672 861 442 82 282 1269 1107 1074 563 21 491 570 . 119 147 4194 3393 Initial 2349 | . . 51 . . 1 3 405 37 322 97 . 419 672 261 442 82 23 114 665 328 563 21 . 34 . . 26 . 2349 Average 357 | . 135 63 . 59 97 318 290 328 342 8 305 969 525 587 341 58 81 736 835 795 303 . 113 288 . 39 22 1241 2858 Influence Increases 20939 | . 495 282 . 308 1110 839 911 668 368 . 989 1111 235 682 77 2 766 1215 649 966 878 10 1610 1563 . 596 520 2985 1104 Destroy 0b10 Robot/C 10480 | . 280 140 . 220 660 460 500 380 260 . 380 390 135 270 30 . 435 555 210 285 390 . 750 675 . 285 300 1870 620 Destroy 0b10 Robot/NC 443 | . 25 . . 5 70 . 50 . 25 . 25 . . 4 8 . 60 8 16 . 24 . 64 8 . . 16 25 10 Destroy Leader 1762 | . 74 30 . 40 174 20 138 10 70 . 92 48 32 8 . . 120 40 28 40 70 . 168 124 . 96 26 232 82 Allied During Kill 3244 | . . 16 . 27 . . 12 . . . 490 156 3 40 5 . 32 336 223 152 303 . 316 235 . 123 17 585 173 Trap Triggered on 0b10 10 | . . . . . . . 10 . . . . . . . . . . . . . . . . . . . . . . Successful Hack 333 | . 24 . . . 42 14 33 18 . . 2 9 36 11 . . 11 12 6 . 21 . 30 3 . 16 45 . . Select Force Hacks 120 | . 30 . . . 30 . 60 . . . . . . . . . . . . . . . . . . . . . . Disable Machine 972 | . 15 75 . . 45 . 15 15 . . . 12 . 12 . . 36 . 96 36 48 . 120 228 . . 60 129 30 Anti-Garrison Action 1295 | . . . . . . 250 . 200 . . . 277 . 227 . . . 76 . 265 . . . . . . . . . Destroy Structure 1557 | . 2 21 . 1 59 50 48 45 13 . . 63 5 86 22 2 60 80 70 164 22 10 150 290 . 16 8 96 174 Partial Spotted 39 | . . . . . . . 15 . . . . . . . . . . . . 12 . . . . . 12 . . . Lose Combat Pursuer 684 | . 45 . . 15 30 45 30 . . . . 156 24 24 12 . 12 108 . 12 . . 12 . . 48 48 48 15 Influence Decreases 19131 | . 363 372 42 303 1110 12 1686 110 705 278 390 430 1142 212 683 205 637 109 1449 361 1890 72 1540 1209 424 549 567 352 1929 Entered New Map 6173 | . . 81 42 . 4 2 427 20 293 181 . 180 608 112 401 155 11 49 604 141 511 41 . 36 424 . 21 . 1829 Time Decay 6779 | . 353 291 . 193 684 . 660 . 342 97 330 . 474 . 222 50 346 . 230 . 514 31 512 598 . 260 320 272 . Lost Part 578 | . 10 . . 50 20 10 20 30 70 . . . . 10 . . 60 20 . 30 10 . . 30 . 48 20 80 60 Lost Ally 2134 | . . . . 60 . . 40 60 . . 60 250 60 90 60 . 70 40 40 190 330 . 353 170 . 161 60 . 40 Purge Threat 3467 | . . . . . 402 . 539 . . . . . . . . . 150 . 575 . 525 . 675 375 . 80 146 . . Squads Dispatched 130 | . 4 . . 1 4 . 9 . 4 . 3 . 4 . 1 . 7 . 3 . 4 . 7 8 . 5 7 36 23 Investigation 16 | . 2 . . 1 2 . 4 . 1 . . . . . . . . . 1 . . . 2 2 . . 1 . . Extermination 20 | . . . . . . . . . 1 . 1 . 2 . . . 1 . 1 . 2 . 3 4 . 2 2 1 . Reinforcement 26 | . 2 . . . 1 . 1 . 2 . . . 1 . . . 5 . 1 . 2 . 2 2 . 2 2 3 . Assault 52 | . . . . . . . 1 . . . . . 1 . . . . . . . . . . . . . . 30 20 Garrison 12 | . . . . . 1 . 3 . . . 2 . . . 1 . 1 . . . . . . . . 1 . . 3 Intercept 4 | . . . . . . . . . . . . . . . . . . . . . . . . . . . 2 2 . Searches Triggered . | . . . . . . . . . . . . . . . . . . . . . . . . . . . . . . Construction Impeded 4 | . . . . . . . . . 1 . . . . . . . 1 . 1 . 1 . . . . . . . . Haulers Reinforced 2 | . . . . . . . . . . . . . . . . . 2 . . . . . . . . . . . . Active Scanning Responses . | . . . . . . . . . . . . . . . . . . . . . . . . . . . . . . Cargo Convoy Interrupts 2 | . . . . . . . . . . . . . . . . . 1 . . . 1 . . . . . . . . Alert ID Control Effect 66 | . . . . . . . . . . . 1 2 4 12 7 . 2 . . 9 11 . . 15 . . 3 . . Stealth | -11 -10 -10 -10 -9 -8 -8 -8 -8 -7 -7 -7 -7 -6 -6 -5 -5 -5 -5 -5 -5 -4 -4 -4 -4 -4 -3 -3 -3 -2 --------- Run | Yrd Mat Min Exi Min Mat Gar Mat Gar Fac Was Fac Gar Fac Gar Fac Was Fac Gar Fac Gar Fac Was Fac Arm Lab Res Qua Sec Res Distress Signals 34 | . 1 . . . 4 . 3 . 1 . 1 . . 1 . . 4 . 2 . 5 . 3 5 . 1 . 1 2 Communications Jammed 141 | . . . . . . . . . . . . . 16 55 1 . 37 . . . . . . . . 11 21 . . Distress Signals 115 | . . . . . . . . . . . . . 14 55 1 . 23 . . . . . . . . 1 21 . . Times Spotted 921 | . 29 6 . 11 60 31 38 23 19 3 24 32 18 38 12 3 55 40 15 38 55 6 60 65 1 23 27 115 74 Peak Tracking Total 43 | . 5 3 . 4 5 5 5 10 8 2 7 6 5 5 3 3 13 7 4 8 11 1 6 10 1 6 4 43 36 Tactical Retreats 39 | . 2 . . 1 2 3 2 . . . . 10 2 1 1 . 1 4 . 1 . . 1 . . 3 2 2 1 Traps | -11 -10 -10 -10 -9 -8 -8 -8 -8 -7 -7 -7 -7 -6 -6 -5 -5 -5 -5 -5 -5 -4 -4 -4 -4 -4 -3 -3 -3 -2 ------- Run | Yrd Mat Min Exi Min Mat Gar Mat Gar Fac Was Fac Gar Fac Gar Fac Was Fac Gar Fac Gar Fac Was Fac Arm Lab Res Qua Sec Res Traps Triggered 39 | . 3 . . . . 4 1 9 1 . 1 1 . 6 2 . . 1 1 1 1 . . 2 . 1 4 . . Indirectly . | . . . . . . . . . . . . . . . . . . . . . . . . . . . . . . Trap Hack Attempts 14 | . . . . . . . 14 . . . . . . . . . . . . . . . . . . . . . . Triggered 1 | . . . . . . . 1 . . . . . . . . . . . . . . . . . . . . . . Disarmed . | . . . . . . . . . . . . . . . . . . . . . . . . . . . . . . Reprogrammed 3 | . . . . . . . 3 . . . . . . . . . . . . . . . . . . . . . . Reused 1 | . . . . . . . 1 . . . . . . . . . . . . . . . . . . . . . . Traps Extracted . | . . . . . . . . . . . . . . . . . . . . . . . . . . . . . . Installed . | . . . . . . . . . . . . . . . . . . . . . . . . . . . . . . Triggered 1 | . . . . . . . 1 . . . . . . . . . . . . . . . . . . . . . . Machines | -11 -10 -10 -10 -9 -8 -8 -8 -8 -7 -7 -7 -7 -6 -6 -5 -5 -5 -5 -5 -5 -4 -4 -4 -4 -4 -3 -3 -3 -2 ---------- Run | Yrd Mat Min Exi Min Mat Gar Mat Gar Fac Was Fac Gar Fac Gar Fac Was Fac Gar Fac Gar Fac Was Fac Arm Lab Res Qua Sec Res Machines Disabled 110 | . 1 5 . . 3 2 1 3 . . . 6 . 8 . . 3 5 8 9 4 . 12 19 1 . 5 13 2 Max in Single Turn 5 | . 1 5 . . 1 1 1 1 . . . 1 . 1 . . . 1 1 1 . . 3 2 1 . 1 2 . Garrison Access 5 | . . . . . . . . . 1 . . . . . . . . . . . 1 . 1 . . 1 1 . . Garrison Relay 23 | . . . . . . 2 . 2 . . . 5 . 6 . . . 3 . 5 . . . . . . . . . Machines Repaired . | . . . . . . . . . . . . . . . . . . . . . . . . . . . . . . Machines Dismantled . | . . . . . . . . . . . . . . . . . . . . . . . . . . . . . . Machines Sabotaged . | . . . . . . . . . . . . . . . . . . . . . . . . . . . . . . Overloaded Fab Kills . | . . . . . . . . . . . . . . . . . . . . . . . . . . . . . . Hacking | -11 -10 -10 -10 -9 -8 -8 -8 -8 -7 -7 -7 -7 -6 -6 -5 -5 -5 -5 -5 -5 -4 -4 -4 -4 -4 -3 -3 -3 -2 --------- Run | Yrd Mat Min Exi Min Mat Gar Mat Gar Fac Was Fac Gar Fac Gar Fac Was Fac Gar Fac Gar Fac Was Fac Arm Lab Res Qua Sec Res Machines Accessed 96 | . 8 . 1 1 13 2 10 1 3 . 2 2 5 1 1 . 2 1 3 1 6 . 9 7 1 4 9 3 . Terminals 61 | . 7 . . . 8 2 6 1 1 . . 2 2 1 1 . 1 1 2 1 3 . 7 3 . 2 7 3 . Fabricators 8 | . . . . . . . . . . . . . 2 . . . . . . . 1 . 1 4 . . . . . Repair Stations 8 | . . . . . 1 . 2 . 1 . 1 . . . . . . . . . 1 . . . . 1 1 . . Recycling Units 3 | . 1 . . . 1 . 1 . . . . . . . . . . . . . . . . . . . . . . Scanalyzers 2 | . . . . . 2 . . . . . . . . . . . . . . . . . . . . . . . . Garrison Access 11 | . . . . . 1 . 1 . 1 . 1 . 1 . . . 1 . 1 . 1 . 1 . . 1 1 . . Total Hacks 259 | . 18 . 1 1 42 3 33 2 7 . 5 4 7 1 1 . 3 2 11 1 11 . 27 16 1 28 31 3 . Successful 140 | . 10 . 1 1 23 2 18 1 5 . 4 1 5 1 . . 2 1 5 . 5 . 10 7 1 20 15 2 . Failed 119 | . 8 . . . 19 1 15 1 2 . 1 3 2 . 1 . 1 1 6 1 6 . 17 9 . 8 16 1 . Catastrophic 27 | . 1 . . . . . 5 . . . . . . . 1 . . . 2 1 2 . 8 5 . 1 1 . . Database Lockouts . | . . . . . . . . . . . . . . . . . . . . . . . . . . . . . . Manual 130 | . 16 . . . 29 2 16 2 2 . 1 . 3 . 1 . . . 9 . 4 . 14 5 . 11 15 . . Terminals 169 | . 16 . . . 29 3 20 2 3 . . 4 4 1 1 . 2 2 8 1 6 . 22 6 . 13 23 3 . Fabricators 17 | . . . . . . . . . . . . . 2 . . . . . . . 1 . 4 10 . . . . . Repair Stations 33 | . . . . . 1 . 9 . 2 . 3 . . . . . . . . . 2 . . . . 12 4 . . Recycling Units 6 | . 2 . . . 3 . 1 . . . . . . . . . . . . . . . . . . . . . . Scanalyzers 8 | . . . . . 8 . . . . . . . . . . . . . . . . . . . . . . . . Garrison Access 23 | . . . . . 1 . 3 . 2 . 2 . 1 . . . 1 . 3 . 2 . 1 . . 3 4 . . Terminal Hacks 53 | . 2 . 1 1 10 1 5 1 2 . . 1 1 1 . . 1 1 2 . 1 . 6 . 1 5 8 2 . Record 3 | . 1 . 1 . . . . . . . . . . . . . . . . . . . . . . . 1 . . Part Schematic 1 | . . . . . . . . . . . . . . . . . . . . . . . 1 . . . . . . Robot Schematic 2 | . . . . . 2 . . . . . . . . . . . . . . . . . . . . . . . . Robot Analysis 5 | . . . . . 2 . 1 . . . . . . . . . . . . . . . . . . 1 1 . . Prototype ID Bank 4 | . 1 . . . . . 1 . 1 . . . . . . . . . . . . . . . . . 1 . . Open Door 3 | . . . . 1 . . . . . . . . . . . . . . . . . . . . . . 1 1 . Level Access Points 2 | . . . . . . . . . . . . . . . . . . . . . . . 1 . . 1 . . . Branch Access Points 4 | . . . . . . . . . . . . . 1 . . . . . . . . . 1 . . 1 1 . . Emergency Access Points 2 | . . . . . . . . . . . . 1 . 1 . . . . . . . . . . . . . . . Terminal Index 2 | . . . . . . . . . . . . . . . . . 1 . . . . . 1 . . . . . . Alert Level 1 | . . . . . 1 . . . . . . . . . . . . . . . . . . . . . . . . Unreport Threat 12 | . . . . . 3 . 2 . . . . . . . . . . . 2 . 1 . 2 . . 1 1 . . Locate Traps 2 | . . . . . 1 . . . . . . . . . . . . . . . . . . . . . 1 . . Patrol Status 1 | . . . . . . . 1 . . . . . . . . . . . . . . . . . . . . . . Recall Extermination 1 | . . . . . . . . . . . . . . . . . . . . . . . . . . . 1 . . Hauler Manifests 1 | . . . . . 1 . . . . . . . . . . . . . . . . . . . . . . . . Registered Components 1 | . . . . . . . . . 1 . . . . . . . . . . . . . . . . . . . . Zone Layout 1 | . . . . . . . . . . . . . . . . . . . . . . . . . . 1 . . . Garrison Registry 3 | . . . . . . 1 . 1 . . . . . . . . . 1 . . . . . . . . . . . Activate Exoskeleton 1 | . . . . . . . . . . . . . . . . . . . . . . . . . . . . 1 . Release Object 1 | . . . . . . . . . . . . . . . . . . . . . . . . . 1 . . . . Fabricator Hacks 9 | . . . . . . . . . . . . . 2 . . . . . . . . . 2 5 . . . . . Network Status 1 | . . . . . . . . . . . . . 1 . . . . . . . . . . . . . . . . Load Schematic 4 | . . . . . . . . . . . . . . . . . . . . . . . 1 3 . . . . . Build 4 | . . . . . . . . . . . . . 1 . . . . . . . . . 1 2 . . . . . Repair Station Hacks 19 | . . . . . . . 5 . . . 2 . . . . . . . . . . . . . . 10 2 . . Scan Component 10 | . . . . . . . 3 . . . 1 . . . . . . . . . . . . . . 5 1 . . Repair 9 | . . . . . . . 2 . . . 1 . . . . . . . . . . . . . . 5 1 . . Recycling Unit Hacks . | . . . . . . . . . . . . . . . . . . . . . . . . . . . . . . Scanalyzer 4 | . . . . . 4 . . . . . . . . . . . . . . . . . . . . . . . . Insert Component 3 | . . . . . 3 . . . . . . . . . . . . . . . . . . . . . . . . Analyze 1 | . . . . . 1 . . . . . . . . . . . . . . . . . . . . . . . . Garrison Access Hacks 17 | . . . . . 1 . 2 . 2 . 1 . 1 . . . 1 . 2 . 2 . 1 . . 2 2 . . Unlock Access 6 | . . . . . 1 . 1 . . . 1 . 1 . . . 1 . 1 . . . . . . . . . . Seal Access 5 | . . . . . . . . . 1 . . . . . . . . . . . 1 . 1 . . 1 1 . . Coupler Status 6 | . . . . . . . 1 . 1 . . . . . . . . . 1 . 1 . . . . 1 1 . . Unauthorized Hacks 38 | . 8 . . . 8 1 6 . 1 . 1 . 1 . . . . . 1 . 2 . 1 2 . 3 3 . . Terminals 27 | . 7 . . . 7 1 4 . . . . . 1 . . . . . 1 . 1 . . 1 . 1 3 . . Track 1 | . . . . . . . . . . . . . . . . . . . . . . . . . . . 1 . . Assimilate 2 | . . . . . 1 . . . . . . . . . . . . . . . . . . . . 1 . . . Botnet 3 | . 1 . . . . . . . . . . . . . . . . . . . . . . 1 . . 1 . . Operators 6 | . . . . . 1 . 1 . . . . . 1 . . . . . 1 . 1 . . . . . 1 . . Skim 14 | . 6 . . . 5 . 3 . . . . . . . . . . . . . . . . . . . . . . Override 1 | . . . . . . 1 . . . . . . . . . . . . . . . . . . . . . . . Fabricators 2 | . . . . . . . . . . . . . . . . . . . . . . . 1 1 . . . . . Prioritize 2 | . . . . . . . . . . . . . . . . . . . . . . . 1 1 . . . . . Repair Stations 3 | . . . . . . . . . 1 . . . . . . . . . . . 1 . . . . 1 . . . Mechanics 2 | . . . . . . . . . . . . . . . . . . . . . 1 . . . . 1 . . . Patch 1 | . . . . . . . . . 1 . . . . . . . . . . . . . . . . . . . . Recycling Units 3 | . 1 . . . 1 . 1 . . . . . . . . . . . . . . . . . . . . . . Tunnel 3 | . 1 . . . 1 . 1 . . . . . . . . . . . . . . . . . . . . . . Scanalyzers . | . . . . . . . . . . . . . . . . . . . . . . . . . . . . . . Garrison Access 3 | . . . . . . . 1 . . . 1 . . . . . . . . . . . . . . 1 . . . Restock 2 | . . . . . . . . . . . 1 . . . . . . . . . . . . . . 1 . . . Eject 1 | . . . . . . . 1 . . . . . . . . . . . . . . . . . . . . . . Data Cores Recovered 1 | . . . . . . . . . . . . . . . . . . . . . . . 1 . . . . . . Used . | . . . . . . . . . . . . . . . . . . . . . . . . . . . . . . Hacking Detections 78 | . 7 . . . 12 1 9 1 3 . 2 2 3 . 1 . 2 1 3 1 6 . 8 6 . 3 6 1 . Full Trace Events 9 | . . . . . 2 . 1 . . . . . . . . . . . 1 . . . 2 2 . . 1 . . Feedback Events . | . . . . . . . . . . . . . . . . . . . . . . . . . . . . . . Feedback Blocked 1 | . . . . . . . . . . . . . . . . . . . . . . . . . . . 1 . . Robot Schematics Acquired 5 | . . . . . 2 . . . . . . . . . . . . . . . . . . . . . 3 . . Robots Built 2 | . . . . . . . . . . . . . . . . . . . . . . . . 2 . . . . . Authchips 1 | . . . . . . . . . . . . . . . . . . . . . . . . 1 . . . . . Time 139 | . . . . . . . . . . . . . . . . . . . . . . . . 139 . . . . . Total Robot Build Rating 4 | . . . . . . . . . . . . . . . . . . . . . . . . 4 . . . . . Part Schematics Acquired 12 | . . . . . 1 . . . . . . . . . . . . . . . . . 1 . . . 10 . . Parts Built 3 | . . . . . . . . . . . . . 1 . . . . . . . . . 2 . . . . . . Authchips . | . . . . . . . . . . . . . . . . . . . . . . . . . . . . . . Time 100 | . . . . . . . . . . . . . 64 . . . . . . . . . 36 . . . . . . Total Part Build Rating 14 | . . . . . . . . . . . . . 8 . . . . . . . . . 6 . . . . . . Parts Repaired 9 | . . . . . . . 2 . . . 1 . . . . . . . . . . . . . . 5 1 . . Time 636 | . . . . . . . 196 . . . 56 . . . . . . . . . . . . . . 347 37 . . Parts Recycled . | . . . . . . . . . . . . . . . . . . . . . . . . . . . . . . Recycled Matter . | . . . . . . . . . . . . . . . . . . . . . . . . . . . . . . Retrieved Matter . | . . . . . . . . . . . . . . . . . . . . . . . . . . . . . . Retrieved Components . | . . . . . . . . . . . . . . . . . . . . . . . . . . . . . . Parts Scanalyzed 1 | . . . . . 1 . . . . . . . . . . . . . . . . . . . . . . . . Part Schematics Acquired 1 | . . . . . 1 . . . . . . . . . . . . . . . . . . . . . . . . Parts Damaged 1 | . . . . . 1 . . . . . . . . . . . . . . . . . . . . . . . . Bothacking | -11 -10 -10 -10 -9 -8 -8 -8 -8 -7 -7 -7 -7 -6 -6 -5 -5 -5 -5 -5 -5 -4 -4 -4 -4 -4 -3 -3 -3 -2 ------------ Run | Yrd Mat Min Exi Min Mat Gar Mat Gar Fac Was Fac Gar Fac Gar Fac Was Fac Gar Fac Gar Fac Was Fac Arm Lab Res Qua Sec Res Used RIF Installer 6 | . . . . . . 1 . 1 . . . 1 . 1 . . . 1 . 1 . . . . . . . . . Coupler Efficiency 1 | . . . . . . . . . . . . . . . . . . 1 . . . . . . . . . . . Threat Obfuscator 1 | . . . . . . . . . . . . 1 . . . . . . . . . . . . . . . . . Zone Cloak 1 | . . . . . . . . . . . . . . 1 . . . . . . . . . . . . . . . Robot Detection 1 | . . . . . . . . . . . . . . . . . . . . 1 . . . . . . . . . Alert ID Control 1 | . . . . . . . . 1 . . . . . . . . . . . . . . . . . . . . . Robots Hacked 116 | . . . . . . . 2 3 3 6 6 2 6 7 5 5 10 2 6 12 10 . 8 11 1 . 8 3 . Non-combat 25 | . . . . . . . 1 . 1 . 4 . 4 . 2 . 4 . 1 . 5 . 2 1 . . . . . Combat 91 | . . . . . . . 1 3 2 6 2 2 2 7 3 5 6 2 5 12 5 . 6 10 1 . 8 3 . Robot Hacks Applied 132 | . . . . . . . 4 3 3 6 6 2 6 7 5 5 10 2 9 13 14 . 11 13 1 . 9 3 . parse_system 6 | . . . . . . . . . . . . . . . 1 . . 2 . 2 . . . . 1 . . . . drop_inventory 8 | . . . . . . . . . . . 4 . . . 1 . . . . . 2 . 1 . . . . . . purge_threat 14 | . . . . . . . 2 . . . . . . . . . 1 . 2 . 3 . 3 3 . . . . . block_reporting 3 | . . . . . . . . . . . . . . . . . . . 1 . 1 . 1 . . . . . . disable_scanner 2 | . . . . . . . . . . . . . . . . . . . . . . . . . . . 2 . . ignore_targets 11 | . . . . . . . . . . 6 . . . . . 5 . . . . . . . . . . . . . find_garrison 4 | . . . . . . . 1 . . . 1 . . . . . 1 . 1 . . . . . . . . . . overload_power 1 | . . . . . . . . . . . . . 1 . . . . . . . . . . . . . . . . amplify_resonance 16 | . . . . . . . . . 2 . . . . 1 . . 1 . 1 3 3 . 1 2 . . 1 1 . reboot_system 1 | . . . . . . . . . . . . . 1 . . . . . . . . . . . . . . . . overwrite_iff 18 | . . . . . . . . 3 . . . . . . 2 . . . 2 . . . 3 6 . . 1 1 . streamctrl_high 1 | . . . . . . . . . . . . . . . . . 1 . . . . . . . . . . . . formatsys_low 10 | . . . . . . . . . 1 . . . 2 . . . 1 . 1 . 3 . . . . . 2 . . formatsys_high 37 | . . . . . . . 1 . . . 1 2 2 6 1 . 5 . 1 8 2 . 2 2 . . 3 1 . Relay Couplers Released 109 | . . . . . . 7 4 9 . . 4 19 . 23 . . . 13 . 20 2 . 3 . . 2 3 . . Ejected 4 | . . . . . . . 4 . . . . . . . . . . . . . . . . . . . . . . Machine Destruction 98 | . . . . . . 7 . 9 . . . 19 . 23 . . . 13 . 20 2 . . . . 2 3 . . Programmers 7 | . . . . . . . . . . . 4 . . . . . . . . . . . 3 . . . . . . Attached 53 | . . . . . . . 2 1 2 . 2 3 2 6 3 . 5 1 2 7 3 . 5 4 . . 4 1 . Fabnet Peak Effective % . | . . . . . . . . . . . . . . . . . . . . . . . . . . . . . . Robots Rewired 53 | . . . . . . . . . . . . 4 . 1 . . . 8 . 20 . . . 20 . . . . . Allies Hacked 22 | . . . . . . . . . . . . 3 . 3 . . . . . . 3 . 6 . . 6 1 . . Hacks Repelled 2 | . . . . . . . . . . . . . . . . . . . . . . . 2 . . . . . . Allies | -11 -10 -10 -10 -9 -8 -8 -8 -8 -7 -7 -7 -7 -6 -6 -5 -5 -5 -5 -5 -5 -4 -4 -4 -4 -4 -3 -3 -3 -2 -------- Run | Yrd Mat Min Exi Min Mat Gar Mat Gar Fac Was Fac Gar Fac Gar Fac Was Fac Gar Fac Gar Fac Was Fac Arm Lab Res Qua Sec Res Total Allies 174 | . . 3 . . . 2 1 3 1 19 1 6 4 7 3 . 7 8 4 28 5 19 5 30 . 1 6 3 8 Largest Group 21 | . . 3 3 3 . 2 2 2 1 20 18 13 4 6 5 1 5 7 7 21 19 21 21 15 14 11 4 2 1 Highest-Rated Group 1251 | . . 40 40 40 . 62 62 45 23 498 428 362 101 234 204 40 289 674 667 888 779 763 763 685 671 478 241 1251 1204 Highest-Rated Ally 1204 | . . 16 16 16 . 31 31 29 23 35 32 32 40 85 77 40 115 119 119 110 68 68 64 116 116 63 64 1204 1204 Total Orders 43 | . . . . . . . . . 1 2 1 4 3 2 . . 3 1 2 . 5 4 5 2 1 4 3 . . STAY 15 | . . . . . . . . . . 1 . 2 2 1 . . 1 1 1 . . 3 2 . 1 . . . . ROAM 2 | . . . . . . . . . . . . . . . . . . . . . 2 . . . . . . . . FOLLOW 6 | . . . . . . . . . . 1 . 1 . . . . 1 . 1 . 1 1 . . . . . . . AID 13 | . . . . . . . . . 1 . 1 1 1 1 . . 1 . . . 2 . 3 2 . . . . . EXPLORE 6 | . . . . . . . . . . . . . . . . . . . . . . . . . . 4 2 . . RETURN 1 | . . . . . . . . . . . . . . . . . . . . . . . . . . . 1 . . Ally Attacks 1529 | . . 15 . 17 . . 34 8 . . 239 107 26 64 31 . 27 64 61 137 126 9 145 125 34 54 30 89 87 Total Damage 53743 | . . 122 . 135 . . 448 46 . . 3073 1401 742 2731 666 . 1167 3786 3039 3904 5105 903 3299 3912 1042 1323 576 6864 9459 Kills 287 | . . 2 . 6 . . 5 . . . 28 11 4 20 7 . 8 23 18 17 35 . 26 22 . 5 3 21 26 Allies Corrupted 17 | . . . . . . . . . . . . . . 2 . . . 1 . . 2 . 7 1 3 1 . . . Allies Melted 2 | . . . . . . . . . . . . . . . . . . . . 1 . . . 1 . . . . . Intel | -11 -10 -10 -10 -9 -8 -8 -8 -8 -7 -7 -7 -7 -6 -6 -5 -5 -5 -5 -5 -5 -4 -4 -4 -4 -4 -3 -3 -3 -2 ------- Run | Yrd Mat Min Exi Min Mat Gar Mat Gar Fac Was Fac Gar Fac Gar Fac Was Fac Gar Fac Gar Fac Was Fac Arm Lab Res Qua Sec Res Active Infowar (turns) 7684 | . . . . . . . . . . . . . 1167 591 431 . 278 . . 160 308 . . 952 372 1195 939 979 312 Sensors 395 | . . . . . . . . . . . . . . . . . 88 . . . . . . . . . . . 307 Terrain 1270 | . . . . . . . . . . . . . . . . . . . . . . . . . . . . 979 291 Cloaking 3 | . . . . . . . . . . . . . . . . . . . . . 2 . . 1 . . . . . Jamming 6303 | . . . . . . . . . . . . . 1167 591 431 . 190 . . 160 306 . . 952 372 1195 939 . . Robot Analysis Total 5 | . . . . . 2 . 1 . . . . . . . . . . . . . . . . . . 1 1 . . Derelict Logs Recovered 2 | . . 1 . 1 . . . . . . . . . . . . . . . . . . . . . . . . . Drone Launches 6 | . . . . . . . . . . . . . . . . . . . . . . . . . . 4 2 . . Drone Recoveries 5 | . . . . . . . . . . . . . . . . . . . . . . . . . . 3 2 . . Exploration | -11 -10 -10 -10 -9 -8 -8 -8 -8 -7 -7 -7 -7 -6 -6 -5 -5 -5 -5 -5 -5 -4 -4 -4 -4 -4 -3 -3 -3 -2 ------------- Run | Yrd Mat Min Exi Min Mat Gar Mat Gar Fac Was Fac Gar Fac Gar Fac Was Fac Gar Fac Gar Fac Was Fac Arm Lab Res Qua Sec Res Turns Passed 35960 | 63 1160 840 349 564 4325 1273 2695 1248 772 1248 1090 1593 1206 1691 469 119 1166 1143 484 1757 1411 1117 1968 1915 372 1215 1251 1112 344 Spaces Moved 15542 | 36 528 507 218 238 1332 428 963 435 310 499 546 820 423 653 260 67 471 539 258 837 766 272 1017 984 208 457 668 661 141 Core 3 | 3 . . . . . . . . . . . . . . . . . . . . . . . . . . . . . Treads 12967 | 33 528 507 218 238 1332 428 963 435 113 403 546 820 423 653 260 67 471 539 258 837 766 272 1017 840 . . . . . Legs 2279 | . . . . . . . . . . . . . . . . . . . . . . . . 144 208 457 668 661 141 Wheels 293 | . . . . . . . . . 197 96 . . . . . . . . . . . . . . . . . . . Hover . | . . . . . . . . . . . . . . . . . . . . . . . . . . . . . . Flight . | . . . . . . . . . . . . . . . . . . . . . . . . . . . . . . Fastest Speed 50 | 50 160 160 160 160 240 240 240 230 131 131 160 160 160 156 168 168 152 155 155 152 145 145 145 120 120 120 120 120 111 Average Speed 173 | 150 180 160 160 214 253 240 240 234 177 154 160 160 164 203 168 168 165 155 155 155 151 145 145 145 120 148 130 123 111 Slowest Speed 570 | 160 320 160 160 320 320 240 240 240 570 240 160 240 170 255 168 168 239 155 155 160 161 145 145 260 120 190 190 186 112 Overloaded Moves . | . . . . . . . . . . . . . . . . . . . . . . . . . . . . . . Propulsion Burnouts . | . . . . . . . . . . . . . . . . . . . . . . . . . . . . . . Robots Hopped 3 | . . . . . . . . . . . . . . . . . . . . . 2 . 1 . . . . . . Potential Cave-ins 6 | . . . . . . . . . . . . . . . . . . . . . . . . . . . . 2 4 Cave-ins Triggered 1 | . . . . . . . . . . . . . . . . . . . . . . . . . . . . . 1 Teleports 1 | . . . . . . . . . . . . . . . . . . . . . . . . . 1 . . . . Exploration Rate (%) 51 | 3 85 98 59 49 88 52 58 60 11 90 22 87 9 82 6 72 16 64 10 90 24 88 25 57 97 22 85 37 5 Regions Visited 29 Branch Regions 7 Pre-discovered Areas 4 | . 2 . . . 1 . 1 . . . . . . . . . . . . . . . . . . . . . . Known Exits Taken 11 | . . 1 . . 1 . 1 . . . 1 . 1 . . . 1 . 1 . . . 1 . 1 1 . 1 . Unknown Exits Taken 6 | 1 1 . 1 1 . . . . . . . . . . . . . . . . . . . 1 . . 1 . . Scrap Searched 2 | . . 1 . 1 . . . . . . . . . . . . . . . . . . . . . . . . . Spaces Dug 59 | . . . . . 4 . 5 2 3 . . . 3 . 2 . 2 2 1 1 3 . 6 11 2 2 3 6 1 Terrain Destroyed 519 | . 2 21 . 1 58 . 59 15 13 . . . 5 . 3 1 39 15 1 10 4 6 97 127 2 8 4 18 10 Melee 14 | . . . . . 4 . 5 2 3 . . . . . . . . . . . . . . . . . . . . Projectile 183 | . 2 1 . 1 10 . 18 . 2 . . . 5 . 3 1 12 4 1 10 4 6 30 31 2 8 4 18 10 AOE 322 | . . 20 . . 44 . 36 13 8 . . . . . . . 27 11 . . . . 67 96 . . . . . Terrain Rammed . | . . . . . . . . . . . . . . . . . . . . . . . . . . . . . . Walls Destroyed . | . . . . . . . . . . . . . . . . . . . . . . . . . . . . . . Machines Disabled . | . . . . . . . . . . . . . . . . . . . . . . . . . . . . . . Actions | -11 -10 -10 -10 -9 -8 -8 -8 -8 -7 -7 -7 -7 -6 -6 -5 -5 -5 -5 -5 -5 -4 -4 -4 -4 -4 -3 -3 -3 -2 --------- Run | Yrd Mat Min Exi Min Mat Gar Mat Gar Fac Was Fac Gar Fac Gar Fac Was Fac Gar Fac Gar Fac Was Fac Arm Lab Res Qua Sec Res Total 23062 | 42 636 520 218 269 2057 571 1224 572 463 822 751 998 886 900 290 72 821 841 335 1272 1000 995 1480 1433 323 993 1022 930 326 Wait 4044 | . 22 6 1 8 518 21 123 16 68 137 167 58 409 94 7 1 117 135 40 165 134 669 226 125 39 421 154 62 101 Move 15514 | 35 527 506 217 238 1331 427 962 434 310 498 545 819 423 652 260 66 471 538 258 836 762 271 1014 983 207 456 667 661 140 Hop 3 | . . . . . . . . . . . . . . . . . . . . . 2 . 1 . . . . . . Pick Up 245 | 1 16 . . 4 23 8 9 16 8 11 6 13 4 16 2 . 8 11 3 14 8 . 10 4 4 11 18 16 1 Fast Attach 119 | 6 6 . . 1 9 . . . 3 8 1 . 2 3 . . 8 5 2 6 5 5 1 10 8 3 22 5 . Attach 111 | . 1 . . 3 4 2 5 3 7 . . 2 3 2 2 . 9 2 . 5 4 2 1 14 2 8 8 12 10 Detach 63 | . 2 . . . 6 1 1 . 1 2 . 2 . 3 1 . 7 3 . 3 . 2 1 13 5 . 4 6 . Swap 379 | . 3 . . 1 21 10 29 13 14 7 9 12 10 24 5 . 31 11 6 26 14 1 36 30 6 7 24 26 3 Drop 205 | . 4 . . 2 20 10 6 12 1 20 5 10 5 15 . . 5 10 3 15 8 5 4 5 7 3 23 7 . Fire 2111 | . 48 8 . 10 107 74 58 45 48 136 18 58 30 78 13 5 157 121 22 193 50 40 174 225 44 79 94 131 45 Melee 51 | . . . . . 4 12 14 14 3 3 . . . . . . . . . . . . . . . . 1 . . Ram . | . . . . . . . . . . . . . . . . . . . . . . . . . . . . . . Kick 13 | . . . . . . . . . . . . . . . . . . . . . . . . . . . 7 4 2 Crush 62 | . 7 . . 2 14 . 2 3 . . . 1 . . . . 6 2 1 2 10 . 10 2 . . . . . Escape Stasis 64 | . . . . . . 6 . 16 . . . 2 . 8 . . . . . 3 . . . . . 5 . . 24 Rewire 64 | . . . . . . . 1 . . . . 21 . 5 . . 2 3 . 4 3 . 2 22 1 . . . . Trap 14 | . . . . . . . 14 . . . . . . . . . . . . . . . . . . . . . . Miscellaneous . | . . . . . . . . . . . . . . . . . . . . . . . . . . . . . . Route ------- -11/Scrapyard -10/Materials (discovered 6 exits: *Mat x3 / [*Min x2] / Sub) -10/Mines (discovered 4 exits: *Mat x2 / *Exi / *Sub) -10/Exiles (discovered 2 exits: *Min x2) -9/Mines -8/Materials (discovered 5 exits: *Fac x3 / [*Sto] / Gar) -8/Garrison (discovered 4 exits: *Mat x4) -8/Materials (discovered 4 exits: *Fac x2 / [*Sto] / Gar) -8/Garrison (discovered 3 exits: *Fac x3) -7/Factory (discovered 4 exits: Fac x2 / *Low x2) -7/Waste -7/Factory (discovered 3 exits: *Fac / *Low / Gar) -7/Garrison (discovered 3 exits: *Fac x3) -6/Factory (discovered 5 exits: Low x2 / Ext x2 / Gar) -6/Garrison (discovered 2 exits: *Fac x2) -5/Factory -5/Waste -5/Factory -5/Garrison (discovered 3 exits: *Fac x3) -5/Factory -5/Garrison (discovered 3 exits: *Fac x3) -4/Factory -4/Waste -4/Factory (discovered 7 exits: Res x4 / Upp x2 / *Arm) -4/Armory (discovered 3 exits: *Res x2 / *Lab) -4/Lab -3/Research (discovered 5 exits: Res x3 / *Qua x2) -3/Quarantine (discovered 2 exits: *Sec / [*Frg]) -3/Section 7 -2/Research History --------- Turn | Location | Event 4 | -11/Scrapyard | Discovered new exit (range 15) 64 | -11/Scrapyard | Entered Materials 312 | -10/Materials | Build established: Mutant 505 | -10/Materials | Discovered new exit (range 12) 510 | -10/Materials | Discovered new exit (range 13) 594 | -10/Materials | Learned 2 Mines zone layouts 634 | -10/Materials | Learned Storage emergency access door positions 761 | -10/Materials | Discovered new exit (range 14) 817 | -10/Materials | Identified exit to Subcaves 828 | -10/Materials | Learned location of Mines (-9) 847 | -10/Materials | Identified exit to Materials 875 | -10/Materials | Learned Storage trap positions 1096 | -10/Materials | Discovered new exit (range 12) 1224 | -10/Materials | Entered Mines 1290 | -10/Mines | Met a Derelict bent on vengeance 1307 | -10/Mines | Discovered exit to Materials (range 9) 1408 | -10/Mines | Assisted by bots powering up and referring to "LRC-V3" 1444 | -10/Mines | Identified exit to Exiles 2052 | -10/Mines | Deemed a non-threat by the Exiles lab entrance 2064 | -10/Mines | Entered Exiles 2064 | -10/Exiles | Found Exiles lab abandoned 2064 | -10/Exiles | Accompanied by 3 allies 2085 | -10/Exiles | Discovered new exit (range 15) 2388 | -10/Exiles | Discovered new exit (range 14) 2413 | -10/Exiles | Entered Mines 2413 | -9/Mines | Accompanied by 3 allies 2429 | -9/Mines | Found a damaged Exp. Sensor Array with a note attached 2433 | -9/Mines | Found Prototype Device 2640 | -9/Mines | Discovered new exit (range 4) 2665 | -9/Mines | Met a Derelict shopkeep closing up shop 2687 | -9/Mines | Learned Materials stockpile data 2808 | -9/Mines | Assembled infested the area 2882 | -9/Mines | Lost 4 parts (1p1n1u1w) 2977 | -9/Mines | Entered Materials 2977 | -8/Materials | Evolved 4 slots: Propulsion x1, Utility x3 3359 | -8/Materials | Garrison activated, responded to threat 3876 | -8/Materials | Build established: Scavenger-Mutant 3960 | -8/Materials | Discovered new exit (range 10) 5141 | -8/Materials | Identified Exp. Sensor Array 5380 | -8/Materials | Discovered new exit (range 4) 5568 | -8/Materials | Discovered new exit (range 15) 5831 | -8/Materials | Discovered new exit (range 11) 6352 | -8/Materials | Learned Storage terminal intel 6382 | -8/Materials | Learned 8 Factory zone layouts 6403 | -8/Materials | Learned Storage security intel 6415 | -8/Materials | Learned Storage garrison access intel 6416 | -8/Materials | Learned 4 Factory zone layouts 6423 | -8/Materials | Learned location of 1 exit from Storage 6438 | -8/Materials | Learned Factory trap positions 6619 | -8/Materials | Build established: Mutant 6755 | -8/Materials | Identified exit to Garrison 7302 | -8/Materials | Entered Garrison 7329 | -8/Garrison | Installed Relay Interface Framework 7444 | -8/Garrison | Discovered new exit (range 51) 7444 | -8/Garrison | Discovered new exit (range 75) 7444 | -8/Garrison | Discovered new exit (range 61) 7444 | -8/Garrison | Discovered new exit (range 39) 7762 | -8/Garrison | Garrison Relay disabled 7902 | -8/Garrison | Triggered checkpoint 8074 | -8/Garrison | Triggered checkpoint 8093 | -8/Garrison | Triggered checkpoint 8294 | -8/Garrison | Garrison Relay disabled 8396 | -8/Garrison | Triggered checkpoint 8418 | -8/Garrison | Triggered checkpoint 8456 | -8/Garrison | Identified exit to Materials 8480 | -8/Garrison | Rescued a captive Derelict 8480 | -8/Garrison | Rescued a captive Derelict 8575 | -8/Garrison | Entered Materials 8575 | -8/Materials | Accompanied by 2 allies 8652 | -8/Materials | Build established: Bothacker-Mutant 9001 | -8/Materials | Discovered new exit (range 8) 9158 | -8/Materials | Discovered new exit (range 8) 9775 | -8/Materials | First assault squad dispatched 9775 | -8/Materials | Discovered new exit (range 16) 9780 | -8/Materials | Repaired Broken Exp. Sensor Array? 9800 | -8/Materials | Garrison activated, responded to threat 10570 | -8/Materials | Build established: Mutant 10757 | -8/Materials | Repaired Enh. Autogun 11252 | -8/Materials | Identified exit to Garrison 11270 | -8/Materials | Entered Garrison 11387 | -8/Garrison | Triggered checkpoint 11422 | -8/Garrison | Garrison Relay disabled 11475 | -8/Garrison | Expanded RIF knowledge: Alert ID Control 11554 | -8/Garrison | Triggered checkpoint 11568 | -8/Garrison | Core integrity fell below 50% 11723 | -8/Garrison | Build established: Bothacker-Mutant 11728 | -8/Garrison | Triggered checkpoint 11745 | -8/Garrison | Triggered checkpoint 11785 | -8/Garrison | Lost 3 allies 11811 | -8/Garrison | Destroyed 7 combat bots 11912 | -8/Garrison | Triggered checkpoint 11953 | -8/Garrison | Garrison Relay disabled 12019 | -8/Garrison | Discovered new exit (range 14) 12278 | -8/Garrison | Discovered new exit (range 13) 12343 | -8/Garrison | Discovered new exit (range 85) 12343 | -8/Garrison | Discovered new exit (range 68) 12343 | -8/Garrison | Discovered new exit (range 14) 12401 | -8/Garrison | Core integrity fell below 20% 12518 | -8/Garrison | Entered Factory 12518 | -7/Factory | Evolved 2 slots: Power x1, Propulsion x1 12519 | -7/Factory | Identified exit to Lower Caves 12520 | -7/Factory | Identified exit to Factory 12521 | -7/Factory | Loaded intel: 116 trap records 12677 | -7/Factory | Destroyed 7 combat bots 12705 | -7/Factory | Lost 5 parts (1n1u3w) 13204 | -7/Factory | Discovered exit to Lower Caves (range 4) 13290 | -7/Factory | Sucked down chute 13290 | -7/Factory | Entered Waste 13295 | -7/Waste | 1 allies followed down the chute 13313 | -7/Waste | Spotted C-40 Crusher 13367 | -7/Waste | Spotted C-40 Crusher 13383 | -7/Waste | Spotted C-40 Crusher 13386 | -7/Waste | Spotted C-40 Crusher 13393 | -7/Waste | Spotted C-40 Crusher 13419 | -7/Waste | Destroyed C-40 Crusher 13457 | -7/Waste | Spotted C-40 Crusher 13573 | -7/Waste | Destroyed C-40 Crusher 13705 | -7/Waste | Destroyed C-40 Crusher 13765 | -7/Waste | Destroyed C-40 Crusher 13835 | -7/Waste | Destroyed C-40 Crusher 13910 | -7/Waste | Destroyed C-40 Crusher 14035 | -7/Waste | Discovered new exit (range 14) 14153 | -7/Waste | Warlord forces began an assault 14538 | -7/Waste | Entered Factory 14538 | -7/Factory | Accompanied by 18 allies 14891 | -7/Factory | Discovered exit to Lower Caves (range 10) 15360 | -7/Factory | Repaired Hvy. Treads 15457 | -7/Factory | Discovered exit to Factory (range 16) 15479 | -7/Factory | Identified exit to Garrison 15492 | -7/Factory | Garrison activated, responded to threat 15628 | -7/Factory | Entered Garrison 15628 | -7/Garrison | Accompanied by 13 allies 15640 | -7/Garrison | Triggered checkpoint 15724 | -7/Garrison | Triggered checkpoint 15726 | -7/Garrison | Triggered checkpoint 15749 | -7/Garrison | Garrison Relay disabled 15793 | -7/Garrison | P-60 Hacker assimilated allied K9-O2F(g) 15916 | -7/Garrison | Lost 6 allies 15926 | -7/Garrison | Triggered checkpoint 16070 | -7/Garrison | Expanded RIF knowledge: Threat Obfuscation 16085 | -7/Garrison | Discovered exit to Factory (range 11) 16090 | -7/Garrison | Triggered checkpoint 16115 | -7/Garrison | Garrison Relay disabled 16253 | -7/Garrison | Triggered checkpoint 16353 | -7/Garrison | Garrison Relay disabled 16418 | -7/Garrison | Discovered exit to Factory (range 13) 16681 | -7/Garrison | Discovered exit to Factory (range 15) 16730 | -7/Garrison | Triggered checkpoint 16744 | -7/Garrison | Garrison Relay disabled 17180 | -7/Garrison | Garrison Relay disabled 17221 | -7/Garrison | Entered Factory 17221 | -6/Factory | Accompanied by 4 allies 17221 | -6/Factory | Evolved 2 slots: Utility x2 17222 | -6/Factory | Identified exit to Extension 17559 | -6/Factory | Fabricated Imp. Heavy Siege Treads? 17571 | -6/Factory | First assault squad dispatched 17671 | -6/Factory | Identified exit to Lower Caves 18086 | -6/Factory | Identified exit to Garrison 18427 | -6/Factory | Entered Garrison 18427 | -6/Garrison | Accompanied by 4 allies 18507 | -6/Garrison | Triggered checkpoint 18507 | -6/Garrison | Garrison Relay disabled 18611 | -6/Garrison | Triggered checkpoint 18657 | -6/Garrison | Spotted B-86 Titan 18668 | -6/Garrison | Rewired B-75 Beast 18673 | -6/Garrison | Spotted B-86 Titan 18702 | -6/Garrison | Allies destroyed B-86 Titan 18704 | -6/Garrison | Destroyed B-86 Titan 18797 | -6/Garrison | Found Quantum Capacitor 18923 | -6/Garrison | Triggered checkpoint 18947 | -6/Garrison | Triggered checkpoint 18954 | -6/Garrison | Triggered checkpoint 19004 | -6/Garrison | Triggered checkpoint 19139 | -6/Garrison | Triggered checkpoint 19182 | -6/Garrison | P-60 Hacker assimilated allied Soldier 5a 19218 | -6/Garrison | Garrison Relay disabled 19262 | -6/Garrison | Garrison Relay disabled 19300 | -6/Garrison | Garrison Relay disabled 19311 | -6/Garrison | Garrison Relay disabled 19400 | -6/Garrison | Discovered new exit (range 10) 19597 | -6/Garrison | Triggered checkpoint 19651 | -6/Garrison | Garrison Relay disabled 19747 | -6/Garrison | Spotted B-75 Beast 19769 | -6/Garrison | Allies destroyed B-75 Beast 19897 | -6/Garrison | Triggered checkpoint 19899 | -6/Garrison | Expanded RIF knowledge: Zone Cloak 19980 | -6/Garrison | Discovered new exit (range 15) 20118 | -6/Garrison | Entered Factory 20118 | -5/Factory | Accompanied by 4 allies 20118 | -5/Factory | Evolved 2 slots: Propulsion x1, Utility x1 20217 | -5/Factory | Build established: Botlord-Mutant 20511 | -5/Factory | Garrison activated, responded to threat 20587 | -5/Factory | Sucked down chute 20587 | -5/Factory | Entered Waste 20602 | -5/Waste | EMP discharged 20602 | -5/Waste | System corruption reached 10% 20610 | -5/Waste | Spotted C-40 Crusher 20626 | -5/Waste | Spotted C-40 Crusher 20626 | -5/Waste | Spotted C-40 Crusher 20627 | -5/Waste | 2 allies followed down the chute 20627 | -5/Waste | Spotted C-40 Crusher 20645 | -5/Waste | Spotted C-40 Crusher 20686 | -5/Waste | Spotted C-40 Crusher 20690 | -5/Waste | Discovered new exit (range 10) 20702 | -5/Waste | EMP discharged 20706 | -5/Waste | Entered Factory 20706 | -5/Factory | Accompanied by 1 ally 20806 | -5/Factory | Build established: Bothacker-Mutant 21429 | -5/Factory | Cargo convoy interrupted 21440 | -5/Factory | System corruption reached 30% 21479 | -5/Factory | Lost 4 parts (1p1n1u1w) 21480 | -5/Factory | Destroyed 10 combat bots 21523 | -5/Factory | Spotted B-75 Beast 21525 | -5/Factory | Hijacked Beast 6a control node with streamctrl_high 21740 | -5/Factory | Found Prototype Device 21740 | -5/Factory | Identified Exp. Transmission Jammer 21819 | -5/Factory | Garrison activated, responded to threat 21871 | -5/Factory | Identified exit to Garrison 21872 | -5/Factory | Entered Garrison 21872 | -5/Garrison | Accompanied by 3 allies 21888 | -5/Garrison | Triggered checkpoint 21939 | -5/Garrison | Lost 3 allies 22022 | -5/Garrison | Destroyed 10 combat bots 22118 | -5/Garrison | Triggered checkpoint 22170 | -5/Garrison | Build established: Scavenger-Mutant 22173 | -5/Garrison | Rewired Executioner 22178 | -5/Garrison | Rewired Executioner 22234 | -5/Garrison | Expanded RIF knowledge: Coupler Efficiency 22328 | -5/Garrison | Triggered checkpoint 22346 | -5/Garrison | Triggered checkpoint 22360 | -5/Garrison | Triggered checkpoint 22411 | -5/Garrison | Discovered new exit (range 12) 22423 | -5/Garrison | Spotted B-90 Cyclops 22429 | -5/Garrison | Rewired B-86 Titan 22430 | -5/Garrison | Rewired B-86 Titan 22439 | -5/Garrison | Allies destroyed B-90 Cyclops 22504 | -5/Garrison | Found Quantum Capacitor 22578 | -5/Garrison | Triggered checkpoint 22597 | -5/Garrison | Garrison Relay disabled 22794 | -5/Garrison | Triggered checkpoint 22838 | -5/Garrison | Discovered new exit (range 18) 22838 | -5/Garrison | Discovered new exit (range 80) 22838 | -5/Garrison | Discovered new exit (range 43) 22854 | -5/Garrison | Garrison Relay disabled 23015 | -5/Garrison | Entered Factory 23015 | -5/Factory | Accompanied by 7 allies 23137 | -5/Factory | Allies destroyed Executioner 23159 | -5/Factory | Build established: Botlord-Mutant 23178 | -5/Factory | Found Exp. Core Analyzer 23480 | -5/Factory | Identified exit to Garrison 23499 | -5/Factory | Entered Garrison 23499 | -5/Garrison | Accompanied by 5 allies 23567 | -5/Garrison | Build established: Bothacker-Mutant 23604 | -5/Garrison | Garrison Relay disabled 23655 | -5/Garrison | Triggered checkpoint 23713 | -5/Garrison | Spotted B-75 Beast 23729 | -5/Garrison | Triggered checkpoint 23755 | -5/Garrison | Allies destroyed B-75 Beast 23768 | -5/Garrison | Triggered checkpoint 23785 | -5/Garrison | Lost 3 allies 23794 | -5/Garrison | Triggered checkpoint 23853 | -5/Garrison | Lost 3 allies 23961 | -5/Garrison | Triggered checkpoint 23976 | -5/Garrison | Expanded RIF knowledge: Robot Detection 23992 | -5/Garrison | Garrison Relay disabled 24062 | -5/Garrison | Found Quantum Capacitor 24143 | -5/Garrison | Discovered new exit (range 10) 24280 | -5/Garrison | Discovered new exit (range 8) 24291 | -5/Garrison | Build established: Botlord-Mutant 24520 | -5/Garrison | Garrison Relay disabled 24521 | -5/Garrison | Triggered checkpoint 24610 | -5/Garrison | Garrison Relay disabled 24907 | -5/Garrison | Discovered new exit (range 10) 24965 | -5/Garrison | Triggered checkpoint 25021 | -5/Garrison | Garrison Relay disabled 25024 | -5/Garrison | Build established: Commander-Mutant 25256 | -5/Garrison | Entered Factory 25256 | -4/Factory | Accompanied by 19 allies 25256 | -4/Factory | Evolved 2 slots: Propulsion x1, Utility x1 25399 | -4/Factory | Lost 3 allies 25744 | -4/Factory | Lost 3 allies 25944 | -4/Factory | P-70 Sage assimilated allied Sentinel 6k 25986 | -4/Factory | Build established: Botlord-Mutant 26399 | -4/Factory | Cargo convoy interrupted 26400 | -4/Factory | P-70 Sage assimilated allied Sentinel 7a 26450 | -4/Factory | Lost 3 allies 26459 | -4/Factory | Destroyed 7 combat bots 26667 | -4/Factory | Sucked down chute 26667 | -4/Factory | Entered Waste 26712 | -4/Waste | 5 allies followed down the chute 26739 | -4/Waste | Spotted C-40 Crusher 26749 | -4/Waste | Destroyed C-40 Crusher 26760 | -4/Waste | Spotted C-40 Crusher 26771 | -4/Waste | Destroyed C-40 Crusher 26807 | -4/Waste | Spotted C-40 Crusher 26815 | -4/Waste | Destroyed C-40 Crusher 26958 | -4/Waste | Spotted C-40 Crusher 26962 | -4/Waste | Destroyed C-40 Crusher 27079 | -4/Waste | Spotted C-40 Crusher 27084 | -4/Waste | Destroyed C-40 Crusher 27418 | -4/Waste | Found Prototype Device 27418 | -4/Waste | Identified Femtoactuators 27483 | -4/Waste | Spotted C-40 Crusher 27495 | -4/Waste | Destroyed C-40 Crusher 27656 | -4/Waste | Warlord forces began an assault 27708 | -4/Waste | Discovered new exit (range 14) 27784 | -4/Waste | Entered Factory 27784 | -4/Factory | Accompanied by 21 allies 28075 | -4/Factory | Identified exit to Research 28474 | -4/Factory | Identified exit to Upper Caves 28474 | -4/Factory | Identified exit to Armory 28719 | -4/Factory | Spotted B-86 Titan 28724 | -4/Factory | Destroyed B-86 Titan 28909 | -4/Factory | Build established: Bothacker-Mutant 29020 | -4/Factory | Destroyed 7 combat bots 29394 | -4/Factory | Build established: Botlord-Mutant 29596 | -4/Factory | Fabricated Particle Charger? 29752 | -4/Factory | Entered Armory 29840 | -4/Armory | Fabricated M-28 Smith (x1) 30171 | -4/Armory | Discovered exit to Research (range 14) 30192 | -4/Armory | Lost 6 allies 30313 | -4/Armory | Spotted B-86 Titan 30335 | -4/Armory | Assimilated Titan 7a with formatsys_high 30574 | -4/Armory | Discovered exit to Research (range 3) 30617 | -4/Armory | Build established: Bothacker-Mutant 30621 | -4/Armory | Lost 3 allies 30671 | -4/Armory | Found Unknown Device 30671 | -4/Armory | Identified Launcher Loader 31002 | -4/Armory | Build established: Commander-Mutant 31014 | -4/Armory | Fabricated M-13 Machinist? 31299 | -4/Armory | Discovered new exit (range 4) 31667 | -4/Armory | Entered Lab 31667 | -4/Lab | Accompanied by 14 allies 31667 | -4/Lab | Discovered exit to Research (range 9) 31688 | -4/Lab | Detected for breach 31697 | -4/Lab | Confronted by A5 31762 | -4/Lab | Destroyed A5 31764 | -4/Lab | Lost 4 allies 31774 | -4/Lab | Gained access to the hidden lab's interior 31792 | -4/Lab | Found Alien Artifact 31792 | -4/Lab | Identified Transdimensional Reconstructor 31792 | -4/Lab | Warped through subspace 31811 | -4/Lab | Found Prototype Special Weapon 31811 | -4/Lab | Identified Gui. Remote Datajack 31838 | -4/Lab | Found Alien Artifact 31838 | -4/Lab | Identified Integrated Mediator 31838 | -4/Lab | Installed Integrated Mediator, increased core attachment efficiency 31848 | -4/Lab | Found Alien Artifact 31848 | -4/Lab | Identified Core Expander 31848 | -4/Lab | Installed Core Expander, added new Power slot 31871 | -4/Lab | Found Med. Regenerative Plating 31878 | -4/Lab | Found Prototype Energy Gun 31878 | -4/Lab | Identified Hyp. EM Gauss Rifle 31882 | -4/Lab | Found Prototype Energy Gun 31882 | -4/Lab | Identified Tachyon Dispersion Ray 31891 | -4/Lab | Found Prototype Hackware 31950 | -4/Lab | Unable to decrypt terminal 31952 | -4/Lab | Identified Deep Network Scanner 31960 | -4/Lab | Unable to decrypt terminal 31960 | -4/Lab | Found Alien Artifact 31960 | -4/Lab | Identified LC Capacitor 32007 | -4/Lab | Found Alien Artifact 32028 | -4/Lab | Found Corrupted Exp. System Shield 32039 | -4/Lab | Entered Research 32039 | -3/Research | Accompanied by 11 allies 32039 | -3/Research | Evolved 2 slots: Utility x2 32127 | -3/Research | Repaired Quantum Capacitor 32191 | -3/Research | Repaired Adv. Cryofiber Web 32254 | -3/Research | Repaired HERF Cannon 32354 | -3/Research | Repaired Neutron Missile Launcher 32417 | -3/Research | Repaired Imp. Force Field 32520 | -3/Research | Garrison activated, responded to threat 32553 | -3/Research | Lost 3 allies 32761 | -3/Research | Spotted B-86 Titan 32819 | -3/Research | Build established: Hacker-Mutant 32881 | -3/Research | Lost 6 allies 32952 | -3/Research | Identified exit to Research 32981 | -3/Research | Identified exit to Quarantine 33193 | -3/Research | Lost 4 parts (1p2u1w) 33254 | -3/Research | Entered Quarantine 33520 | -3/Quarantine | Repaired Centrium Leg 33598 | -3/Quarantine | Build established: Bothacker-Mutant 33613 | -3/Quarantine | Identified Core Reset Matrix 33627 | -3/Quarantine | Found Core Stripper 33894 | -3/Quarantine | Met incapacitated Sigix Warrior 33894 | -3/Quarantine | Lockdown squad dispatched 33899 | -3/Quarantine | Acquired the access code to the Sigix quarantine chamber 33907 | -3/Quarantine | Unlocked Sigix quarantine chamber 33916 | -3/Quarantine | Found Sigix Containment Pod 34098 | -3/Quarantine | Found Alien Artifact 34106 | -3/Quarantine | Identified Subatomic Replicator 34119 | -3/Quarantine | Found Phase Redirector 34326 | -3/Quarantine | Spotted Fortress 34335 | -3/Quarantine | Destroyed Fortress 34344 | -3/Quarantine | Found Prototype Reactor 34344 | -3/Quarantine | Identified Vortex Chain Reactor 34347 | -3/Quarantine | Found Vortex Chain Reactor 34353 | -3/Quarantine | Found Prototype Device 34353 | -3/Quarantine | Identified Exp. Force Field 34358 | -3/Quarantine | Found Prototype Device 34358 | -3/Quarantine | Identified Thermal Barrier 34367 | -3/Quarantine | Found Prototype Device 34367 | -3/Quarantine | Identified Exp. EM Shield 34400 | -3/Quarantine | Intercept squad dispatched 34414 | -3/Quarantine | Spotted Tracker 34451 | -3/Quarantine | Scanned by Researcher 34465 | -3/Quarantine | System corruption reached 10% 34499 | -3/Quarantine | Discovered new exit (range 6) 34499 | -3/Quarantine | Discovered new exit (range 6) 34505 | -3/Quarantine | Entered Section 7 34592 | -3/Section 7 | Discovered exit to Research (range 9) 34739 | -3/Section 7 | Found Alien Artifact 34739 | -3/Section 7 | Identified Integrity Redistributor 34739 | -3/Section 7 | Used Integrity Redistributor, redistributed integrity from core (-325) 34761 | -3/Section 7 | Build established: Hacker-Mutant 34785 | -3/Section 7 | Used Core Reset Matrix 34789 | -3/Section 7 | Detected hypermatrix surge 34789 | -3/Section 7 | Sensed 16 artifacts in vicinity 34882 | -3/Section 7 | Found Integrity Redistributor 34973 | -3/Section 7 | Spotted Executioner 34979 | -3/Section 7 | Destroyed Executioner 34979 | -3/Section 7 | Spotted Executioner 34985 | -3/Section 7 | Destroyed Executioner 35127 | -3/Section 7 | Spotted Executioner 35148 | -3/Section 7 | Activated Sigix Exoskeleton 35148 | -3/Section 7 | Received instructions from Sigix Warrior 35184 | -3/Section 7 | Spotted Executioner 35187 | -3/Section 7 | Destroyed Executioner 35189 | -3/Section 7 | Destroyed Executioner 35282 | -3/Section 7 | Spotted Executioner 35286 | -3/Section 7 | Destroyed Executioner 35315 | -3/Section 7 | Destroyed 11 combat bots 35359 | -3/Section 7 | Destroyed Investigator 35359 | -3/Section 7 | Spotted Striker 35374 | -3/Section 7 | Destroyed Executioner 35379 | -3/Section 7 | Allies destroyed Striker 35405 | -3/Section 7 | Destroyed 33 combat bots 35477 | -3/Section 7 | Core integrity fell below 50% 35477 | -3/Section 7 | Spotted Executioner 35480 | -3/Section 7 | Destroyed Executioner 35514 | -3/Section 7 | Intercept squad dispatched 35519 | -3/Section 7 | Spotted Tracker 35521 | -3/Section 7 | Destroyed 18 combat bots 35522 | -3/Section 7 | Allies destroyed Tracker 35542 | -3/Section 7 | Spotted Combat Programmer 35569 | -3/Section 7 | Allies destroyed Combat Programmer 35582 | -3/Section 7 | Discovered exit to Research (range 5) 35594 | -3/Section 7 | Sigix Exoskeleton integrity reduced to 80% 35613 | -3/Section 7 | System corruption reached 30% 35617 | -3/Section 7 | Spotted Executioner 35617 | -3/Section 7 | Spotted Executioner 35617 | -3/Section 7 | Spotted Investigator 35617 | -3/Section 7 | Spotted Executioner 35617 | -3/Section 7 | Entered Research 35617 | -2/Research | Accompanied by 1 ally (Sigix Warrior) 35617 | -2/Research | Evolved 2 slots: Propulsion x1, Utility x1 35652 | -2/Research | Garrison activated, responded to threat 35880 | -2/Research | Spotted Executioner 35880 | -2/Research | Spotted Striker 35884 | -2/Research | Sigix Exoskeleton integrity reduced to 60% 35891 | -2/Research | Destroyed Striker 35892 | -2/Research | Build established: Alien-Mutant 35892 | -2/Research | Spotted Executioner 35908 | -2/Research | Allies destroyed Executioner 35909 | -2/Research | Crushed by falling debris 35912 | -2/Research | Sigix Exoskeleton integrity reduced to 40% 35927 | -2/Research | Spotted Investigator 35930 | -2/Research | Released all parts (14) 35943 | -2/Research | Sigix Exoskeleton integrity reduced to 20% 35948 | -2/Research | Core integrity fell below 50% 35956 | -2/Research | Emitted hypermatrix ping 35958 | -2/Research | Core integrity fell below 20% 35960 | -2/Research | Lost 6 parts (5u1w) 35961 | -2/Research | Assembled emerged from beneath the floor 35961 | -2/Research | Garrison activated, responded to threat 35961 | -2/Research | Destroyed by G-73 Enforcer with Phase Gun Last Messages --------------- 35960_ Stasis bubble strength at 36. 35960_ Held in stasis. 35960_ Investigator is analyzing... 35961_ Assembled emerge from beneath the floor. 35961_ as-22767 sneak attacks. 35961_ L-61 Swordsman shuts down. 35961_ as-44370 sneak attacks. 35961_ Y-72 Warden calls for garrison reinforcements. 35961_ ALERT: Activating Garrison Access R001. 35961_ as-44690 sneak attacks. 35961_ M-36 Artificer repairs G-73 Enforcer Unknown Energy Gun. 35961_ C-30 ARC bursts open, deploying its payload. 35961_ Striker unfolds itself. 35961_ P-80 Master unfolds itself. 35961_ Stasis bubble strength at 30. 35961_ Slug penetrates as-65047. 35961_ as-65047 suffers critical hit (Destroy). 35961_ as-65047 destroyed. 35961_ Slug penetrates as-53541. 35961_ M-36 Artificer repairs G-73 Enforcer. Map ----- +----------------------------------------------------+ | #?#?????##?????#???##?#??#???????????????????????? | | ??????#???###????#?#???#????#????????????????????? | | ??????# ?#?????????##????????#???????????????????? | | ??????# ?#?#????##?????????#?????????????????????? | | ?##???#"#######??##??????#?????##????????????????? | | ????### ##?????????????????#????????????????? | | ??#?#?# #???????#?#?#??#?#??????#???????????? | | ####### #???????##?#?#?#??????#?????????????? | | ! # #???############????????????#???????? | | # #????# #????????????????????? | | # ##?#?# #?##?????????????????? | | #"""####????# #?????????#??????????? | | # #???#?# #????????????????????? | | [!/*% ####??# #????#??#????????????? | | !"!%%[ # #?#?# #??????????????#?#???? | | !=!!==="#?#??? #??#???#????????#????? | | #*%!!/###?###?? ? ?#??????????????#????? | | !#*%!/=#????#?####+#####???#########????????? | | #%!!= ##??#?## #?? ??#????? | | #!!=% ###?#?# ; = ???????? | | # !*% #???# + ???????? | | ####### #%%[ ##?### # ???????? | | ??#???# #[#####*####### ! #? ?#?##??? | | ??????#?#!###%[%!gh #=*a!# ?????#??? | | #########/###%%%im p ;*a*Y%;;;;+#########??????#? | | = #=##; [=giggpgbll@aa! g #????#??? | | +%; ; g=! l=l m!aga= !c ^ #?#?????? | | """ #=#?# !m%%E% mg=a*!Y/% #??#????? | | """ #=##; g=g/ ; gg% """" ####????? | | """ ![### ] i%gg #;#;##;#%=!"""" "" #????? | | !%#?; = g* ; #####;!%= """ """#???#? | | #%#####;###;;;;####### * " " F"#????? | | """ #* % """#????? | | """ + ! !K "" #??#?? | | """ # !%p ###?????? | | + % =% [ #???????? | | #"##+####################;;;![ #???????? | | """ #? ???#?????#???????## [=%[==#?#?????? | | ] """ ## #???????#????######=" ===##??????? | | """ ## #???????#????# [[!%!!["#??????? | | /## #?????????#??# [!==![!# #?????? | | ? ## #???#????#???# !==[!#?#?????? | | ??? ## #?????#?????# "" % " ?????? | | ???#####?# ##???#??????#T "G " ???? | | ?????????# #???#???????## "" " ?? | | ????????## #????????##??# " ? | | ?????????# #????????????# " "" | | ?????????# ##???????????# # """ | | ?????????# ! #??#??#????#?# """ " ""?? | | ???????#?# #??#?????????# ? """ " ???? | +----------------------------------------------------+ Best States ------------- Heat Dissipation 147 Coolant Potential 240 Energy Generation 80 Energy Capacity 940 Matter Stores 300 Matter Capacity 300 Sight Range 16 Robot Scan Range 20 Terrain Scan Range 24 Terrain Scan Density 10 Jamming Range 22 Cloak Strength 2 Power Amplification 40 Base Temperature (-) 200 Armor Coverage 1200 Resistance: KI 30 Resistance: EM 75 Evasion (%) 70 Targeting Accuracy 8 Core Analysis 8 Recoil Reduction 6 Energy Filtering 50 Particle Charging 15 Offensive Hacking 25 Defensive Hacking 22 Relay Coupler Types 4 Relay Coupler Value 93 Authchip Count 1 Item Schematics ----------------- None Robot Schematics ------------------ None Fabricated ------------ Imp. Heavy Siege Treads | x1 | -6/Factory | Preloaded Particle Charger | x2 | -4/Factory M-28 Smith | x1 | -4/Armory | Authchip M-13 Machinist | x1 | -4/Armory Repaired ---------- Exp. Sensor Array | 62% | -8/Materials | Broken Enh. Autogun | 18% | -8/Materials Hvy. Treads | 70% | -7/Factory Quantum Capacitor | 50% | -3/Research Adv. Cryofiber Web | 50% | -3/Research HERF Cannon | 50% | -3/Research Neutron Missile Launcher | 73% | -3/Research Imp. Force Field | 33% | -3/Research Centrium Leg | 40% | -3/Quarantine Alien Tech Used ----------------- Transdimensional Reconstructor Integrated Mediator Core Expander LC Capacitor Core Stripper Phase Redirector Integrity Redistributor Core Reset Matrix Achievements -------------- None Challenges ------------ None Game ------ Seed RapidMetafiberChainsword Manual? 0 Play Time 04:38:06 Cumulative 747.0 hours Start 2025.09.10 @ 18:11:32 End 2025.09.12 @ 08:42:02 Sessions 15 Manual Loads 0 Difficulty Rogue Special Mode None Game No. 384 Rogue 384 Adventurer 0 Explorer 0 Win Type - Total 60 Types 41/4/5/2/1/1/3/1/1/1 Lore% 92 Gallery% 86 Achievement% 91 Wizard Run 0 Options --------- Layout 0 ASCII 0 Keyboard 1 Movement Numpad Keybinds 0 Fullscreen 2 Font 18/SmallcapsGlow Map View 76x50 Zoom Use 0% Tactical HUD 1 Map Filters NONE Filters NONE Steam 1 RUN: 9a29b65c-dd3c-49f2-985c-a0c3fb97c78e